Workbook

Sheet rapport
A1: Z score calculator for cardiopulmonary exercise testing in children
A3: Last name : | H3: Birth date : | K3: 1992-07-21 | P3: (yyyy-mm-dd)
A4: First name : | H4: Medical chart number :
A5: Height : | D5: 155 | E5: cm | H5: Date of test: | K5: 2007-07-21 | P5: (yyyy-mm-dd)
A6: Body mass : | D6: 55.0 | E6: kg | H6: Age: | K6: =ROUND((K5-K3)/365,1) -> 15.0 | L6: years
A7: BMI: | D7: =D6/((D5/100)*(D5/100)) -> 22.9 | E7: kg/m2 | H7: Sex: | K7: M | L7: (M or F)
A8: *BMI Z score : | D8: =IF(AND($K$6>=12, $K$6<=18), BFA_MaleWHO!$J$6, "outside age range") -> 1.1 | E8: (ajusted for sex and age) | H8: Operator:
A9: **Corrected body mass: | D9: =IF(AND(D8>=1,$K$7="M"),BFA_MaleWHO!K16,IF(AND(D8>=1,$K$7="F"),BFA_MaleWHO!K17,(D6))) -> 54.5 | E9: kg | H9: Referring physician :
H10: Indication:
A11: Protocol : | K11: Exercise stage:
A13: Exercise parameters | G13: Measured values | J13: Predicted values | M13: Z score
A14: Workload | D14: At VAT : | H14: W | I14: Predicted = | K14: =IF($K$7="M",Estimates_Male!B19,IF($K$7="F",Estimates_Female!B19,"sex?")) -> 121 | L14: W | M14: Z = | N14: =IF($K$7="M",Estimates_Male!D19,IF($K$7="F",Estimates_Female!D19,"sexe")) ->  | O14: ( | P14: =IF(N14= " "," ",(IF((NORMSDIST(N14)*100)<1,"< 1",IF((NORMSDIST(N14)*100)>99,">99",NORMSDIST(N14)*100)))) ->  | Q14: th) perc.
D15: At peak : | H15: W | I15: Predicted = | K15: =IF($K$7="M",Estimates_Male!B18,IF($K$7="F",Estimates_Female!B18,"sex?")) -> 207 | L15: W | M15: Z = | N15: =IF($K$7="M",Estimates_Male!D18,IF($K$7="F",Estimates_Female!D18,"sexe")) ->  | O15: ( | P15: =IF(N15= " "," ",(IF((NORMSDIST(N15)*100)<1,"< 1",IF((NORMSDIST(N15)*100)>99,">99",NORMSDIST(N15)*100)))) ->  | Q15: th) perc.
A16: VO2 | D16: At VAT: | H16: ml/min | I16: Predicted = | K16: =IF($K$7="M",Estimates_Male!B6,IF($K$7="F",Estimates_Female!B6,"sex?")) -> 1581 | L16: ml/min | M16: Z = | N16: =IF($K$7="M",Estimates_Male!D6,IF($K$7="F",Estimates_Female!D6,"sexe")) ->  | O16: ( | P16: =IF(N16= " "," ",(IF((NORMSDIST(N16)*100)<1,"< 1",IF((NORMSDIST(N16)*100)>99,">99",NORMSDIST(N16)*100)))) ->  | Q16: th) perc.
D17: At VAT: | G17: =G16/D6 -> 0.0 | H17: ml/kg/min
D18: At peak : | H18: ml/min | I18: Predicted = | K18: =IF($K$7="M",Estimates_Male!B5,IF($K$7="F",Estimates_Female!B5,"sex?")) -> 2607 | L18: ml/min | M18: Z = | N18: =IF($K$7="M",Estimates_Male!D5,IF($K$7="F",Estimates_Female!D5,"sexe")) ->  | O18: ( | P18: =IF(N18= " "," ",(IF((NORMSDIST(N18)*100)<1,"< 1",IF((NORMSDIST(N18)*100)>99,">99",NORMSDIST(N18)*100)))) ->  | Q18: th) perc.
D19: At peak : | G19: =G18/D6 -> 0.0 | H19: ml/kg/min
A20: Heart rate | D20: At rest : | H20: BPM
D21: At peak : | H21: BPM | I21: Predicted = | K21: =IF($K$7="M",Estimates_Male!B17,IF($K$7="F",Estimates_Female!B17,"sex?")) -> 191 | L21: BPM | M21: Z = | N21: =IF($K$7="M",Estimates_Male!D17,IF($K$7="F",Estimates_Female!D17,"sexe")) ->  | O21: ( | P21: =IF(N21= " "," ",(IF((NORMSDIST(N21)*100)<1,"< 1",IF((NORMSDIST(N21)*100)>99,">99",NORMSDIST(N21)*100)))) ->  | Q21: th) perc.
D22: 1 minute post-exercise | H22: BPM | I22: Predicted = | K22: =IF($K$7="M",Estimates_Male!B20,IF($K$7="F",Estimates_Female!B20,"sex?")) -> 154 | L22: BPM | M22: Z = | N22: =IF($K$7="M",Estimates_Male!D20,IF($K$7="F",Estimates_Female!D20,"sexe")) ->  | O22: ( | P22: =IF(N22= " "," ",(IF((NORMSDIST(N22)*100)<1,"< 1",IF((NORMSDIST(N22)*100)>99,">99",NORMSDIST(N22)*100)))) ->  | Q22: th) perc.
D23: 2 minutes post-exercise | H23: BPM | I23: Predicted = | K23: =IF($K$7="M",Estimates_Male!B21,IF($K$7="F",Estimates_Female!B21,"sex?")) -> 137 | L23: BPM | M23: Z = | N23: =IF($K$7="M",Estimates_Male!D21,IF($K$7="F",Estimates_Female!D21,"sexe")) ->  | O23: ( | P23: =IF(N23= " "," ",(IF((NORMSDIST(N23)*100)<1,"< 1",IF((NORMSDIST(N23)*100)>99,">99",NORMSDIST(N23)*100)))) ->  | Q23: th) perc.
A24: O2 pulse | D24: At rest: | H24: ml/beat
D25: At peak : | H25: ml/beat | I25: Predicted = | K25: =IF($K$7="M",Estimates_Male!B8,IF($K$7="F",Estimates_Female!B8,"sex?")) -> 13.9 | L25: ml/beat | M25: Z = | N25: =IF($K$7="M",Estimates_Male!D8,IF($K$7="F",Estimates_Female!D8,"sexe")) ->  | O25: ( | P25: =IF(N25= " "," ",(IF((NORMSDIST(N25)*100)<1,"< 1",IF((NORMSDIST(N25)*100)>99,">99",NORMSDIST(N25)*100)))) ->  | Q25: th) perc.
D26: % Increase from warm-up | H26: % | I26: Predicted = | K26: =IF($K$7="M",Estimates_Male!B10,IF($K$7="F",Estimates_Female!B10,"sex?")) -> 133 | L26: % | M26: Z = | N26: =IF($K$7="M",Estimates_Male!D10,IF($K$7="F",Estimates_Female!D10,"sexe")) ->  | O26: ( | P26: =IF(N26= " "," ",(IF((NORMSDIST(N26)*100)<1,"< 1",IF((NORMSDIST(N26)*100)>99,">99",NORMSDIST(N26)*100)))) ->  | Q26: th) perc.
D27: O2p/work slope | H27: ml/beat/W | I27: Predicted = | K27: =IF($K$7="M",Estimates_Male!B9,IF($K$7="F",Estimates_Female!B9,"sex?")) -> 0.038 | L27: ml/beat/W | M27: Z = | N27: =IF($K$7="M",Estimates_Male!D9,IF($K$7="F",Estimates_Female!D9,"sexe")) ->  | O27: ( | P27: =IF(N27= " "," ",(IF((NORMSDIST(N27)*100)<1,"< 1",IF((NORMSDIST(N27)*100)>99,">99",NORMSDIST(N27)*100)))) ->  | Q27: th) perc.
A28: Ventilation | D28: At rest: | H28: L/min
D29: At peak: | H29: L/min | I29: Predicted = | K29: =IF($K$7="M",Estimates_Male!B16,IF($K$7="F",Estimates_Female!B16,"sex?")) -> 94 | L29: L/min | M29: Z = | N29: =IF($K$7="M",Estimates_Male!D16,IF($K$7="F",Estimates_Female!D16,"sexe")) ->  | O29: ( | P29: =IF(N29= " "," ",(IF((NORMSDIST(N29)*100)<1,"< 1",IF((NORMSDIST(N29)*100)>99,">99",NORMSDIST(N29)*100)))) ->  | Q29: th) perc.
A30: RER | D30: At peak : | I30: Predicted = | K30: =IF($K$7="M",Estimates_Male!B15,IF($K$7="F",Estimates_Female!B15,"sex?")) -> 1.19 | M30: Z = | N30: =IF($K$7="M",Estimates_Male!D15,IF($K$7="F",Estimates_Female!D15,"sexe")) ->  | O30: ( | Q30: th) perc.
A31: VO2/Work slope | D31: At peak : | H31: ml/min/W | I31: Predicted = | K31: =IF($K$7="M",Estimates_Male!B7,IF($K$7="F",Estimates_Female!B7,"sex?")) -> 11.0 | L31: ml/min/W | M31: Z = | N31: =IF($K$7="M",Estimates_Male!D7,IF($K$7="F",Estimates_Female!D7,"sexe")) ->  | O31: ( | Q31: th) perc.
A32: Ve/VCO2 slope | D32: Entire duration of the effort : | I32: Predicted = | K32: =IF($K$7="M",Estimates_Male!B13,IF($K$7="F",Estimates_Female!B13,"sex?")) -> 28.8 | M32: Z = | N32: =IF($K$7="M",Estimates_Male!D13,IF($K$7="F",Estimates_Female!D13,"sexe")) ->  | O32: ( | Q32: th) perc.
D33: Below VAT : | I33: Predicted = | K33: =IF($K$7="M",Estimates_Male!B14,IF($K$7="F",Estimates_Female!B14,"sex?")) -> 23.7 | M33: Z = | N33: =IF($K$7="M",Estimates_Male!D14,IF($K$7="F",Estimates_Female!D14,"sexe")) ->  | O33: ( | Q33: th) perc.
A34: Ve/VCO2 | D34: At VAT : | I34: Predicted = | K34: =IF($K$7="M",Estimates_Male!B22,IF($K$7="F",Estimates_Female!B22,"sex?")) -> 26.8 | M34: Z = | N34: =IF($K$7="M",Estimates_Male!D22,IF($K$7="F",Estimates_Female!D22,"sexe")) ->  | O34: ( | Q34: th) perc.
A35: OUES | D35: Entire duration of the effort : | I35: Predicted = | K35: =IF($K$7="M",Estimates_Male!B11,IF($K$7="F",Estimates_Female!B11,"sex?")) -> 2738 | M35: Z = | N35: =IF($K$7="M",Estimates_Male!D11,IF($K$7="F",Estimates_Female!D11,"sexe")) ->  | O35: ( | Q35: th) perc.
D36: Below VAT : | I36: Predicted = | K36: =IF($K$7="M",Estimates_Male!B12,IF($K$7="F",Estimates_Female!B12,"sex?")) -> 2470 | M36: Z = | N36: =IF($K$7="M",Estimates_Male!D12,IF($K$7="F",Estimates_Female!D12,"sexe")) ->  | O36: ( | Q36: th) perc.
A37: * according to World Health Organization (WHO) tables
A38: ** corrected body mass for overweight children (BMI> 85th percentile).

Sheet Estimates_Male
A1: Body mass | B1: =rapport!D9 -> 54.53972467 | C1: age | D1: =rapport!K6 -> 15.0
A2: Height | B2: =rapport!D5 -> 155 | C2: Sex | D2: =rapport!K7 -> M
A4: Observed | B4: Predicted | C4: Predicted SD | D4: Z | E4: dependent_var | F4: n_pt | G4: intercept | H4: multi1_beta | I4: multi2_beta | J4: multi3_beta | K4: multi4_beta | L4: std_intercept | M4: std_slope
A5: =rapport!G18 -> 0 | B5: =G5+(H5*$B$2*$B$2)+(I5*$B$2)+(J5*$B$1)+(K5*$D$1) -> 2607.381381 | C5: =L5+(M5*$B$2) -> 282.6225 | D5: =IF(A5>0,(A5-B5)/C5," ") ->  | E5: peakvo2_avg30sec | F5: 109 | G5: -8660.14 | H5: -0.29714 | I5: 105.875 | J5: 36.5914 | K5: 0 | L5: -717.05 | M5: 6.4495
A6: =rapport!G16 -> 0 | B6: 1581.095066 | C6: =L6+(M6*$B$2) -> 390.4659 | E6: vo2_vat | F6: 107 | G6: -3897.72 | H6: -0.14561 | I6: 56.265 | J6: 17.9842 | K6: -48.3222 | L6: -90.93 | M6: 3.10578
A7: =rapport!G31 -> 0 | B7: 11.02995 | C7: =L7+(M7*$B$2) -> 0.8693 | D7: =IF(A7>0,(A7-B7)/C7," ") ->  | E7: vo2_work_slope | F7: 109 | G7: 12.38 | H7: 0 | I7: -0.00871 | J7: 0 | K7: 0 | L7: -1 | M7: 0.01206
A8: =rapport!G25 -> 0 | B8: 13.880113 | C8: =L8+(M8*$B$2) -> 1.6266 | D8: =IF(A8>0,(A8-B8)/C8," ") ->  | E8: o2p_peak_30sec | F8: 107 | G8: -37.48 | H8: -0.00131 | I8: 0.459 | J8: 0.2143 | K8: 0 | L8: -2.67 | M8: 0.02772
A9: =rapport!G27 -> 0.000 | B9: 0.0383 | C9: =L9+(M9*$B$2) -> 0.00748 | E9: o2p_work_slope | F9: 107 | G9: 0.0383 | H9: 0 | I9: 0 | J9: 0 | K9: 0 | L9: 0.00748 | M9: 0
A10: =rapport!G26 -> 0 | B10: 133.154945 | C10: =L10+(M10*$B$2) -> 44.8564 | E10: o2p_inc_pct2 | F10: 107 | G10: 451.63 | H10: 0.01393 | I10: -4.026 | J10: -0.5338 | K10: 0 | L10: 137.72 | M10: -0.59912
A11: =rapport!G35 -> 0 | B11: 2738.170642 | C11: 292.11495 | E11: OUES0_100 | F11: 109 | G11: -4247.27 | H11: -0.17111 | I11: 57.841 | J11: 39.0725 | K11: 0 | L11: -1042.48 | M11: 8.61029
A12: =rapport!G36 -> 0 | B12: =G12+(H12*$B$2*$B$2)+(I12*$B$2)+(J12*$B$1)+(K12*$D$1) -> 2469.833995 | C12: =L12+(M12*$B$2) -> 343.21395 | E12: OUES0_VAT | F12: 107 | G12: 3180.75 | H12: 0.09235 | I12: -30.414 | J12: 32.7201 | K12: 0 | L12: -783.619 | M12: 7.26989
A13: =rapport!G32 -> 0 | B13: 28.8046 | C13: 3.61355 | D13: =IF(A13>0,(A13-B13)/C13," ") ->  | E13: vevco2_slope0_100 | F13: 107 | G13: 35.11 | H13: 0 | I13: -0.04068 | J13: 0 | K13: 0 | L13: 4.48 | M13: -0.00559
A14: =rapport!G33 -> 0 | B14: 23.68244883 | C14: 2.86995 | D14: =IF(A14>0,(A14-B14)/C14," ") ->  | E14: vevco2_slope0_vat | F14: 107 | G14: 7.87 | H14: -0.00092 | I14: 0.319 | J14: -0.0466 | K14: -0.5992 | L14: 11.04 | M14: -0.05271
A15: =rapport!G30 -> 0 | B15: 1.1880603 | C15: 0.0652 | D15: =IF(A15>0,(A15-B15)/C15," ") ->  | E15: rer_avg30 | F15: 109 | G15: 0.79 | H15: 0 | I15: 0.00142 | J15: -0.001 | K15: 0.0155 | L15: 0.09 | M15: -0.00016
A16: =rapport!G29 -> 0 | B16: 93.53120004 | C16: 10.1916 | E16: ve_avg30 | F16: 109 | G16: 2.7 | H16: 0.00228 | I16: -0.419 | J16: 0.9805 | K16: 3.1682 | L16: -52.54 | M16: 0.40472
A17: =rapport!G21 -> 0 | B17: 191.1005073 | C17: 7.51075 | D17: =IF(A17>0,(A17-B17)/C17," ") ->  | E17: maxfcard | F17: 107 | G17: 169.45 | H17: -0.00053 | I17: 0.313 | J17: -0.2591 | K17: 0 | L17: -7.47 | M17: 0.09665
A18: =rapport!G15 -> 0 | B18: 206.7508404 | C18: 26.4025 | D18: =IF(A18>0,(A18-B18)/C18," ") ->  | E18: maxwork | F18: 109 | G18: 378.86 | H18: 0.01817 | I18: -5.324 | J18: 2.8242 | K18: 4.1697 | L18: -7.62 | M18: 0.2195
A19: =rapport!G14 -> 0 | B19: 120.8433186 | C19: 29.56145 | D19: =IF(A19>0,(A19-B19)/C19," ") ->  | E19: workload_vat | F19: 107 | G19: 104.43 | H19: 0.00386 | I19: -0.939 | J19: 1.2692 | K19: 0 | L19: -9.28 | M19: 0.25059
A20: =rapport!G22 -> 0 | B20: 154.1921728 | C20: 12.74665 | D20: =IF(A20>0,(A20-B20)/C20," ") ->  | E20: HRR1 | F20: 89 | G20: 536.44 | H20: 0.01675 | I20: -4.908 | J20: -0.4387 | K20: 0 | L20: 12.68 | M20: 0.00043
A21: =rapport!G23 -> 0 | B21: 136.8305028 | C21: 12.9668 | E21: HRR2 | F21: 86 | G21: 80.17 | H21: 0 | I21: 0.62651 | J21: -0.555 | K21: -0.6786 | L21: 2.65 | M21: 0.06656
A22: =rapport!G34 -> 0 | B22: =G22+(H22*$B$2*$B$2)+(I22*$B$2)+(J22*$B$1)+(K22*$D$1) -> 26.83252944 | C22: 2.7934 | E22: vevco2_vat | F22: 109 | G22: 68.39 | H22: 0.00128 | I22: -0.434 | J22: -0.0924 | K22: 0 | L22: 7.276 | M22: -0.02892

Sheet Estimates_Female
A1: Body mass | B1: =rapport!D9 -> 54.53972467 | C1: age | D1: =rapport!K6 -> 15.0
A2: Height | B2: =rapport!D5 -> 155 | C2: Sex | D2: =rapport!K7 -> M
A4: Observed | B4: Predicted | C4: Predicted SD | D4: Z | E4: dependent_var | F4: n_pt | G4: intercept | H4: multi1_beta | I4: multi2_beta | J4: multi3_beta | K4: multi4_beta | L4: std_intercept | M4: std_slope
A5: =rapport!G18 -> 0 | B5: =G5+(H5*$B$2*$B$2)+(I5*$B$2)+(J5*$B$1)+(K5*$D$1) -> 1968.385 | C5: =L5+(M5*$B$2) -> 282.9771 | D5: =IF(A5>0,(A5-B5)/C5," ") ->  | E5: peakvo2_avg30sec | F5: 119 | G5: -6424.42 | H5: -0.24407 | I5: 86.8042 | J5: 14.7037 | K5: 0 | L5: -45.905 | M5: 2.12182
A6: =rapport!G16 -> 0 | B6: 1319.270006 | C6: =L6+(M6*$B$2) -> 285.6649 | D6: =IF(A6>0,(A6-B6)/C6," ") ->  | E6: vo2_vat | F6: 118 | G6: 1281.8 | H6: -0.00407 | I6: -2.1389 | J6: 15.9084 | K6: -26.7239 | L6: 215.329 | M6: 0.45378
A7: =rapport!G31 -> 0 | B7: 10.25775381 | C7: =L7+(M7*$B$2) -> 1.20015 | D7: =IF(A7>0,(A7-B7)/C7," ") ->  | E7: vo2_work_slope | F7: 119 | G7: 52.17 | H7: 0.00145 | I7: -0.5005 | J7: 0.0152 | K7: 0 | L7: 1.583 | M7: -0.00247
A8: =rapport!G25 -> 0 | B8: 10.66040027 | C8: 1.677 | D8: =IF(A8>0,(A8-B8)/C8," ") ->  | E8: o2p_peak_30sec | F8: 116 | G8: -1.83 | H8: -0.00019 | I8: 0.0746 | J8: 0.1007 | K8: 0 | L8: 2.173 | M8: -0.0032
A9: =rapport!G27 -> 0.000 | B9: 0.03650201526 | C9: 0.007454 | D9: =IF(A9>0,(A9-B9)/C9," ") ->  | E9: o2p_work_slope | F9: 119 | G9: 0.05146 | H9: 0.000000629 | I9: -0.000232 | J9: 0.000108 | K9: 0 | L9: 0.01539 | M9: -5.12e-05
A10: =rapport!G26 -> 0 | B10: 115.2664798 | C10: 31.4248 | E10: o2p_inc_pct2 | F10: 116 | G10: -3002.23 | H10: -0.11372 | I10: 38.1842 | J10: -0.29 | K10: -3.541 | L10: -47.402 | M10: 0.50856
A11: =rapport!G35 -> 0 | B11: 2122.66906 | C11: 287.60545 | E11: OUES0_100 | F11: 119 | G11: -6768.43 | H11: -0.25095 | I11: 91.4157 | J11: 13.765 | K11: 0 | L11: -406.049 | M11: 4.47519
A12: =rapport!G36 -> 0 | B12: 2080.277481 | C12: 319.2632 | E12: OUES0_VAT | F12: 118 | G12: 35.63 | H12: -0.03329 | I12: 12.752 | J12: 15.9128 | K12: 0 | L12: -476.017 | M12: 5.13084
A13: =rapport!G32 -> 0 | B13: 28.88516881 | C13: 3.76795 | D13: =IF(A13>0,(A13-B13)/C13," ") ->  | E13: vevco2_slope0_100 | F13: 118 | G13: 37.91 | H13: 0.00019 | I13: -0.1122 | J13: 0.0697 | K13: 0 | L13: 5.366 | M13: -0.01031
A14: =rapport!G33 -> 0 | B14: 25.00820874 | C14: 2.73055 | D14: =IF(A14>0,(A14-B14)/C14," ") ->  | E14: vevco2_slope0_vat | F14: 118 | G14: -120.73 | H14: -0.00558 | I14: 1.8265 | J14: 0.0191 | K14: -0.2901 | L14: 1.985 | M14: 0.00481
A15: =rapport!G30 -> 0 | B15: 1.2099745 | C15: 0.08205 | D15: =IF(A15>0,(A15-B15)/C15," ") ->  | E15: rer_avg30 | F15: 119 | G15: 0.91 | H15: 0 | I15: 0.00122 | J15: -0.0019 | K15: 0.0143 | L15: 0.251 | M15: -0.00109
A16: =rapport!G29 -> 0 | B16: 72.9286786 | C16: 14.26575 | E16: ve_avg30 | F16: 119 | G16: -202.86 | H16: -0.00697 | I16: 2.564 | J16: 0.5281 | K16: 1.1347 | L16: 3.718 | M16: 0.06805
A17: =rapport!G21 -> 0 | B17: 190.5814252 | C17: 9.6944 | D17: =IF(A17>0,(A17-B17)/C17," ") ->  | E17: maxfcard | F17: 116 | G17: -391.11 | H17: -0.02128 | I17: 7.1975 | J17: -0.1932 | K17: -0.8088 | L17: 28.406 | M17: -0.12072
A18: =rapport!G15 -> 0 | B18: 158.931232 | C18: 19.57865 | D18: =IF(A18>0,(A18-B18)/C18," ") ->  | E18: maxwork | F18: 119 | G18: -1622.29 | H18: -0.06025 | I18: 20.5698 | J18: 0.7409 | K18: 0 | L18: -24.415 | M18: 0.28383
A19: =rapport!G14 -> 0 | B19: 97.0285785 | C19: 23.4896 | D19: =IF(A19>0,(A19-B19)/C19," ") ->  | E19: workload_vat | F19: 118 | G19: -276.67 | H19: -0.01221 | I19: 4.092 | J19: 0.6011 | K19: 0 | L19: 17.767 | M19: 0.03692
A20: =rapport!G22 -> 0 | B20: 167.0277829 | C20: 15.20805 | E20: HRR1 | F20: 100 | G20: 144.81 | H20: 0 | I20: 0.22463 | J20: -0.047 | K20: -0.6691 | L20: 60.017 | M20: -0.28909
A21: =rapport!G23 -> 0 | B21: 149.9204201 | C21: 14.18755 | E21: HRR2 | F21: 98 | G21: 110.78 | H21: 0 | I21: 0.3973 | J21: -0.2399 | K21: -0.6238 | L21: 32.476 | M21: -0.11799
A22: =rapport!G34 -> 0 | B22: =G22+(H22*$B$2*$B$2)+(I22*$B$2)+(J22*$B$1)+(K22*$D$1) -> 27.87767839 | C22: 2.79685 | E22: vevco2_vat | F22: 119 | G22: -119.13 | H22: -0.00548 | I22: 1.806 | J22: -0.0232 | K22: 0 | L22: -0.004 | M22: 0.01807

Sheet BFA_MaleCDC
A1: Age [y] | B1: muHeight | C1: sigmaHeight | D1: muBMI | E1: sigmaBMI | F1: nuBMI | G1: muWeight | H1: sigmaWeight | I1: nuWeight
A2: 0 | B2: 51.12458411 | C2: 1.917027938 | G2: 3.617190133 | H2: 0.1236168299 | I2: 0.84708861
A3: 0.01 | B3: 52.16262398 | C3: 1.893975522 | G3: 3.73895406 | H3: 0.1231956479 | I3: 0.8356272898
A4: 0.02 | B4: 52.73263843 | C4: 1.88378165 | G4: 3.861197211 | H4: 0.1227761123 | I4: 0.8241666752 | K4: BMI | L4: =rapport!D7 -> 22.89281998
A5: 0.03 | B5: 53.23543654 | C5: 1.876605928 | G5: 3.98437268 | H5: 0.1223584279 | I5: 0.8127074777
A6: 0.04 | B6: 53.71244935 | C6: 1.871298496 | G6: 4.108894987 | H6: 0.1219427976 | I6: 0.8012504162 | K6: muBMI | L6: =IF(rapport!$K$7="M", VLOOKUP(rapport!$K$6,male_table,4,FALSE), IF(rapport!$K$7="F", VLOOKUP(rapport!$K$6,female_table,4,FALSE), "out of range")) -> 20.09109412 | N6: Z=x | O6: =((L4/L6)^L8-1)/(L7*L8) -> 0.8163368947 | Q6: Doit donner 64,6
A7: 0.05 | B7: 54.17946487 | C7: 1.867371098 | G7: 4.235093267 | H7: 0.1215294222 | I7: 0.789796219 | K7: sigmaBMI | L7: =IF(rapport!$K$7="m", VLOOKUP(rapport!$K$6,male_table,5,FALSE), IF(rapport!$K$7="f", VLOOKUP(rapport!$K$6,female_table,5,FALSE), "out of range")) -> 0.1426474917
A8: 0.06 | B8: 54.64377038 | C8: 1.864535311 | G8: 4.36313235 | H8: 0.1211185 | I8: 0.7783456365 | K8: nuBMI | L8: =IF(rapport!$K$7="m", VLOOKUP(rapport!$K$6,male_table,6,FALSE), IF(rapport!$K$7="f", VLOOKUP(rapport!$K$6,female_table,6,FALSE), "out of range")) -> -1.785496644
A9: 0.07 | B9: 55.10837895 | C9: 1.862595052 | G9: 4.492990852 | H9: 0.1207102229 | I9: 0.7668994426
A10: 0.08 | B10: 55.57292083 | C10: 1.86140639 | G10: 4.62440294 | H10: 0.1203047782 | I10: 0.7554584585
A11: 0.09 | B11: 56.03588286 | C11: 1.860867301 | G11: 4.756829431 | H11: 0.1199023552 | I11: 0.7440235809
A12: 0.1 | B12: 56.49552817 | C12: 1.860888178 | G12: 4.889488494 | H12: 0.1195031455 | I12: 0.7325958422 | O12: exp ((log((l*s)+1) + (l * log(m)))/l) | P12: =EXP(LOG((L8*L7)+1)+(L8*LOG(L6))/L8) -> 3.23923
A13: 0.11 | B13: 56.94958417 | C13: 1.861387735 | G13: 5.021427916 | H13: 0.1191073405 | I13: 0.7211763576 | S13: Log((l*s+1)) | T13: =(LOG((L8*L7)+1)) -> -0.1276669079
A14: 0.12 | B14: 57.3964269 | C14: 1.862294953 | G14: 5.151752426 | H14: 0.1187151282 | I14: 0.7097662525 | P14: =L6+T17 -> 23.33033 | S14: (l * log(m)))/l | T14: =(L8*LOG(L6))/L8 -> 1.303003588
A15: 0.13 | B15: 57.83564549 | C15: 1.863551321 | G15: 5.279766438 | H15: 0.1183266905 | I15: 0.6983666431 | P15: =rapport!D5/100*rapport!D5/100 -> 2.40 | S15: Somme | T15: =T13+T14 -> 1.17533668
A16: 0.14 | B16: 58.26756543 | C16: 1.865106558 | G16: 5.404980846 | H16: 0.1179421985 | I16: 0.6869786495 | P16: =P14*P15+1 -> 57.05111175
A17: 0.15 | B17: 58.69245594 | C17: 1.866921863 | G17: 5.527117001 | H17: 0.1175618083 | I17: 0.6756034084 | P17: =P14*P15 -> 56.05111175 | S17: exp(somme) | T17: =EXP(T15) -> 3.239233347
A18: 0.16 | B18: 59.11033292 | C18: 1.868965232 | G18: 5.646058175 | H18: 0.1171856651 | I18: 0.6642420757
A19: 0.17 | B19: 59.52120371 | C19: 1.871213501 | G19: 5.761737378 | H19: 0.1168139076 | I19: 0.6528958376 | O19: Z (=1)=((bmi/m)**l-1)/(s*l);
A20: 0.18 | B20: 59.92513081 | C20: 1.873653889 | G20: 5.874127622 | H20: 0.1164466681 | I20: 0.6415659009
A21: 0.19 | B21: 60.32216711 | C21: 1.876269059 | G21: 5.983291969 | H21: 0.1160840678 | I21: 0.6302534789 | O21: Bmi pred | P21: =L6+(POWER(1*(ABS(L8)*L7),ABS(L8)-1)) -> 20.43262754
A22: 0.2 | B22: 60.71259716 | C22: 1.879040866 | G22: 6.089389619 | H22: 0.115726216 | I22: 0.6189597822 | P22: =P21+P12 -> 23.67186
A23: 0.21 | B23: 61.09667703 | C23: 1.881955863 | G23: 6.192614933 | H23: 0.1153732102 | I23: 0.6076860234
A24: 0.22 | B24: 61.47444672 | C24: 1.885005466 | G24: 6.29314849 | H24: 0.1150251416 | I24: 0.5964334107
A25: 0.23 | B25: 61.84587088 | C25: 1.888184526 | G25: 6.39115629 | H25: 0.1146820977 | I25: 0.585203144 | O25: Z (=0)=((bmi/m)**l-1)/(s*l); | P25: =((L4/L6)^L8-1) -> -0.207918246
A26: 0.24 | B26: 62.21097774 | C26: 1.891490243 | G26: 6.486802534 | H26: 0.1143441644 | I26: 0.5739964279
A27: 0.25 | B27: 62.56962057 | C27: 1.894918293 | G27: 6.580191993 | H27: 0.1140114241 | I27: 0.5628144703 | O27: Bmi pred
A28: 0.26 | B28: 62.92150381 | C28: 1.898463612 | G28: 6.671367541 | H28: 0.113683947 | I28: 0.5516584718
A29: 0.27 | B29: 63.2664058 | C29: 1.902118612 | G29: 6.760370066 | H29: 0.1133617732 | I29: 0.5405296049
A30: 0.28 | B30: 63.60428413 | C30: 1.905878535 | G30: 6.847303143 | H30: 0.1130449251 | I30: 0.5294289956
A31: 0.29 | B31: 63.93510815 | C31: 1.909740303 | G31: 6.932304152 | H31: 0.1127334163 | I31: 0.5183577494
A32: 0.3 | B32: 64.25879859 | C32: 1.913701448 | G32: 7.015504822 | H32: 0.1124272569 | I32: 0.5073169676
A33: 0.31 | B33: 64.57521605 | C33: 1.917759084 | G33: 7.097005088 | H33: 0.1121264564 | I33: 0.4963077562
A34: 0.32 | B34: 64.884216 | C34: 1.921911561 | G34: 7.176856865 | H34: 0.111831027 | I34: 0.4853312285
A35: 0.33 | B35: 65.18579055 | C35: 1.926157257 | G35: 7.255076014 | H35: 0.1115409838 | I35: 0.4743884905
A36: 0.34 | B36: 65.48000833 | C36: 1.930495243 | G36: 7.331661651 | H36: 0.1112563412 | I36: 0.4634806338
A37: 0.35 | B37: 65.76694749 | C37: 1.934922862 | G37: 7.406616528 | H37: 0.1109771026 | I37: 0.4526087061
A38: 0.36 | B38: 66.04672069 | C38: 1.93943577 | G38: 7.47998645 | H38: 0.1107032574 | I38: 0.441773702
A39: 0.37 | B39: 66.3195447 | C39: 1.944029521 | G39: 7.551824985 | H39: 0.1104347843 | I39: 0.430976577
A40: 0.38 | B40: 66.58566035 | C40: 1.948701282 | G40: 7.622195483 | H40: 0.1101716547 | I40: 0.4202182504
A41: 0.39 | B41: 66.84531991 | C41: 1.953447722 | G41: 7.691179284 | H41: 0.1099138386 | I41: 0.4094996201
A42: 0.4 | B42: 67.09882775 | C42: 1.958265543 | G42: 7.758848569 | H42: 0.1096613073 | I42: 0.3988215764
A43: 0.41 | B43: 67.34650063 | C43: 1.963152203 | G43: 7.825234535 | H43: 0.1094140323 | I43: 0.3881850149
A44: 0.42 | B44: 67.58865718 | C44: 1.968105363 | G44: 7.890336242 | H44: 0.1091719841 | I44: 0.3775908256
A45: 0.43 | B45: 67.82554014 | C45: 1.973122787 | G45: 7.954113263 | H45: 0.1089351281 | I45: 0.3670398611
A46: 0.44 | B46: 68.05742763 | C46: 1.978201426 | G46: 8.016577452 | H46: 0.1087034189 | I46: 0.3565328821
A47: 0.45 | B47: 68.28457009 | C47: 1.983338483 | G47: 8.077747368 | H47: 0.108476803 | I47: 0.3460705854
A48: 0.46 | B48: 68.50727747 | C48: 1.988533998 | G48: 8.137654632 | H48: 0.1082552218 | I48: 0.3356536135
A49: 0.47 | B49: 68.72584485 | C49: 1.993788919 | G49: 8.196327642 | H49: 0.1080386153 | I49: 0.3252825824
A50: 0.48 | B50: 68.94048227 | C50: 1.999102785 | G50: 8.253762386 | H50: 0.1078269224 | I50: 0.3149580954
A51: 0.49 | B51: 69.15133992 | C51: 2.004474957 | G51: 8.309916082 | H51: 0.1076200827 | I51: 0.3046807457
A52: 0.5 | B52: 69.35850611 | C52: 2.009904584 | G52: 8.364690996 | H52: 0.107418034 | I52: 0.2944511265
A53: 0.51 | B53: 69.56200693 | C53: 2.015390818 | G53: 8.417963983 | H53: 0.1072207123 | I53: 0.2842698193
A54: 0.52 | B54: 69.76188463 | C54: 2.020931869 | G54: 8.469663837 | H54: 0.1070280468 | I54: 0.2741373758
A55: 0.53 | B55: 69.95832463 | C55: 2.026524686 | G55: 8.519811265 | H55: 0.1068399597 | I55: 0.2640542942
A56: 0.54 | B56: 70.15160363 | C56: 2.032166602 | G56: 8.568521122 | H56: 0.10665637 | I56: 0.2540210301
A57: 0.55 | B57: 70.3420657 | C57: 2.037855672 | G57: 8.615988266 | H57: 0.1064771919 | I57: 0.2440380141
A58: 0.56 | B58: 70.53004435 | C58: 2.043590194 | G58: 8.662432601 | H58: 0.1063023352 | I58: 0.2341056629
A59: 0.57 | B59: 70.71582623 | C59: 2.049367449 | G59: 8.708089577 | H59: 0.1061317088 | I59: 0.2242243808
A60: 0.58 | B60: 70.8996695 | C60: 2.055184795 | G60: 8.753201561 | H60: 0.1059652215 | I60: 0.2143945521
A61: 0.59 | B61: 71.08178642 | C61: 2.061038952 | G61: 8.79797226 | H61: 0.1058027817 | I61: 0.2046165512
A62: 0.6 | B62: 71.26227922 | C62: 2.066927296 | G62: 8.842535574 | H62: 0.105644298 | I62: 0.1948907424
A63: 0.61 | B63: 71.44117944 | C63: 2.072848221 | G63: 8.886942132 | H63: 0.1054896801 | I63: 0.1852174788
A64: 0.62 | B64: 71.61844786 | C64: 2.078800385 | G64: 8.931156062 | H64: 0.1053388405 | I64: 0.1755971087
A65: 0.63 | B65: 71.79397248 | C65: 2.08478216 | G65: 8.975064351 | H65: 0.1051916993 | I65: 0.1660299733
A66: 0.64 | B66: 71.96762185 | C66: 2.090792384 | G66: 9.018509931 | H66: 0.1050481828 | I66: 0.1565164
A67: 0.65 | B67: 72.13925533 | C67: 2.096831021 | G67: 9.061307677 | H67: 0.1049082201 | I67: 0.1470567086
A68: 0.66 | B68: 72.3087191 | C68: 2.102897245 | G68: 9.10327361 | H68: 0.1047717435 | I68: 0.1376511986
A69: 0.67 | B69: 72.47584439 | C69: 2.108990163 | G69: 9.144227126 | H69: 0.1046386904 | I69: 0.128300134
A70: 0.68 | B70: 72.64055738 | C70: 2.115108935 | G70: 9.184044835 | H70: 0.1045089984 | I70: 0.1190037281
A71: 0.69 | B71: 72.80290789 | C71: 2.121251482 | G71: 9.222718992 | H71: 0.1043826015 | I71: 0.1097621281
A72: 0.7 | B72: 72.9630122 | C72: 2.127415738 | G72: 9.260331569 | H72: 0.1042594317 | I72: 0.1005754386
A73: 0.71 | B73: 73.12104647 | C73: 2.1335985 | G73: 9.297019921 | H73: 0.1041394208 | I73: 0.09144373886
A74: 0.72 | B74: 73.27725618 | C74: 2.139797018 | G74: 9.332966244 | H74: 0.1040225021 | I74: 0.08236708703
A75: 0.73 | B75: 73.43192624 | C75: 2.146007776 | G75: 9.368368645 | H75: 0.1039086078 | I75: 0.07334552961
A76: 0.74 | B76: 73.58534086 | C76: 2.15222745 | G76: 9.403422592 | H76: 0.1037976692 | I76: 0.06437910464
A77: 0.75 | B77: 73.73775536 | C77: 2.158454041 | G77: 9.438317681 | H77: 0.1036896203 | I77: 0.05546784302
A78: 0.76 | B78: 73.88938821 | C78: 2.164684287 | G78: 9.473215328 | H78: 0.1035843959 | I78: 0.04661177284
A79: 0.77 | B79: 74.04038594 | C79: 2.170916493 | G79: 9.508231182 | H79: 0.103481933 | I79: 0.03781091862
A80: 0.78 | B80: 74.19084792 | C80: 2.177148956 | G80: 9.543424283 | H80: 0.1033821718 | I80: 0.02906530196
A81: 0.79 | B81: 74.34083939 | C81: 2.18338004 | G81: 9.578809227 | H81: 0.103285055 | I81: 0.02037492883
A82: 0.8 | B82: 74.49039513 | C82: 2.189609615 | G82: 9.614373299 | H82: 0.1031905275 | I82: 0.01173979087
A83: 0.81 | B83: 74.63951863 | C83: 2.19583692 | G83: 9.650064004 | H83: 0.1030985378 | I83: 0.003159869744
A84: 0.82 | B84: 74.78817804 | C84: 2.20206219 | G84: 9.685781278 | H84: 0.1030090352 | I84: -0.005364857195
A85: 0.83 | B85: 74.93630697 | C85: 2.20828501 | G85: 9.721398006 | H85: 0.1029219713 | I85: -0.01383442513
A86: 0.84 | B86: 75.08381249 | C86: 2.214506395 | G86: 9.756801834 | H86: 0.1028373002 | I86: -0.02224890346
A87: 0.85 | B87: 75.23061862 | C87: 2.220727165 | G87: 9.791931908 | H87: 0.102754979 | I87: -0.03060840674
A88: 0.86 | B88: 75.37676672 | C88: 2.226947239 | G88: 9.826826511 | H88: 0.1026749653 | I88: -0.03891310345
A89: 0.87 | B89: 75.52236163 | C89: 2.233165635 | G89: 9.861563274 | H89: 0.1025972166 | I89: -0.04716319403
A90: 0.88 | B90: 75.667512 | C90: 2.239382615 | G90: 9.896220789 | H90: 0.1025216907 | I90: -0.05535889162
A91: 0.89 | B91: 75.81230586 | C91: 2.245597524 | G91: 9.93086368 | H91: 0.1024483469 | I91: -0.06350042605
A92: 0.9 | B92: 75.95679656 | C92: 2.251810439 | G92: 9.965539739 | H92: 0.1023771467 | I92: -0.07158803528
A93: 0.91 | B93: 76.10100534 | C93: 2.258020799 | G93: 10.00027226 | H93: 0.102308053 | I93: -0.07962196286
A94: 0.92 | B94: 76.24493461 | C94: 2.264229137 | G94: 10.03506863 | H94: 0.1022410308 | I94: -0.08760245443
A95: 0.93 | B95: 76.38856097 | C95: 2.270437241 | G95: 10.0699076 | H95: 0.1021760485 | I95: -0.09552975386
A96: 0.94 | B96: 76.53184247 | C96: 2.276646104 | G96: 10.10473102 | H96: 0.102113078 | I96: -0.1034041067
A97: 0.95 | B97: 76.67471375 | C97: 2.282857666 | G97: 10.13942786 | H97: 0.1020520944 | I97: -0.1112257545
A98: 0.96 | B98: 76.81709358 | C98: 2.28907402 | G98: 10.17385049 | H98: 0.1019930745 | I98: -0.1189949362
A99: 0.97 | B99: 76.95889767 | C99: 2.295297419 | G99: 10.20783677 | H99: 0.1019359958 | I99: -0.1267118928
A100: 0.98 | B100: 77.10002213 | C100: 2.301529439 | G100: 10.24119342 | H100: 0.1018808367 | I100: -0.1343768696
A101: 0.99 | B101: 77.24034613 | C101: 2.307771737 | G101: 10.27370301 | H101: 0.1018275767 | I101: -0.1419901115
A102: 1 | B102: 77.37974554 | C102: 2.314025411 | G102: 10.30512385 | H102: 0.101776198 | I102: -0.1495518779
A103: 1.01 | B103: 77.51813048 | C103: 2.320292771 | G103: 10.33523657 | H103: 0.1017266856 | I103: -0.1570624639
A104: 1.02 | B104: 77.65549976 | C104: 2.326571359 | G104: 10.36396588 | H104: 0.1016790227 | I104: -0.164522197
A105: 1.03 | B105: 77.79190429 | C105: 2.332863808 | G105: 10.39133313 | H105: 0.1016331881 | I105: -0.1719314329
A106: 1.04 | B106: 77.9274163 | C106: 2.339168981 | G106: 10.41740717 | H106: 0.1015891564 | I106: -0.1792905454
A107: 1.05 | B107: 78.06211804 | C107: 2.345481961 | G107: 10.44227432 | H107: 0.1015468982 | I107: -0.1865999209
A108: 1.06 | B108: 78.19607769 | C108: 2.35180455 | G108: 10.46603564 | H108: 0.1015063823 | I108: -0.1938599557
A109: 1.07 | B109: 78.32936373 | C109: 2.358134793 | G109: 10.48880024 | H109: 0.1014675766 | I109: -0.2010710108
A110: 1.08 | B110: 78.46204809 | C110: 2.364470418 | G110: 10.51067618 | H110: 0.1014304531 | I110: -0.2082332994
A111: 1.09 | B111: 78.59421 | C111: 2.370805156 | G111: 10.53178019 | H111: 0.1013949844 | I111: -0.2153470028
A112: 1.1 | B112: 78.72591193 | C112: 2.377143976 | G112: 10.552238 | H112: 0.1013611435 | I112: -0.2224123076
A113: 1.11 | B113: 78.85724026 | C113: 2.383477055 | G113: 10.57217499 | H113: 0.101328904 | I113: -0.2294294012
A114: 1.12 | B114: 78.98825843 | C114: 2.389805915 | G114: 10.59171153 | H114: 0.1012982394 | I114: -0.2363984724
A115: 1.13 | B115: 79.11903114 | C115: 2.396128332 | G115: 10.61097364 | H115: 0.1012691232 | I115: -0.2433197124
A116: 1.14 | B116: 79.2496195 | C116: 2.402442081 | G116: 10.63009272 | H116: 0.1012415285 | I116: -0.2501933138
A117: 1.15 | B117: 79.38008728 | C117: 2.40874519 | G117: 10.64920509 | H117: 0.1012154284 | I117: -0.2570194693
A118: 1.16 | B118: 79.51049319 | C118: 2.415035959 | G118: 10.66844722 | H118: 0.1011907961 | I118: -0.2637983722
A119: 1.17 | B119: 79.64088902 | C119: 2.421312903 | G119: 10.68795182 | H119: 0.1011676055 | I119: -0.2705302159
A120: 1.18 | B120: 79.77132146 | C120: 2.427574657 | G120: 10.70784338 | H120: 0.1011458305 | I120: -0.277215193
A121: 1.19 | B121: 79.90182572 | C121: 2.433819953 | G121: 10.72823553 | H121: 0.101125445 | I121: -0.2838534971
A122: 1.2 | B122: 80.03243337 | C122: 2.440047629 | G122: 10.74923701 | H122: 0.1011064233 | I122: -0.2904453225
A123: 1.21 | B123: 80.16317307 | C123: 2.44625656 | G123: 10.77094628 | H123: 0.1010887405 | I123: -0.2969908676
A124: 1.22 | B124: 80.29406992 | C124: 2.452449338 | G124: 10.79345001 | H124: 0.1010723721 | I124: -0.3034903321
A125: 1.23 | B125: 80.42513287 | C125: 2.458617451 | G125: 10.8168283 | H125: 0.1010572939 | I125: -0.3099439146
A126: 1.24 | B126: 80.55637979 | C126: 2.464767366 | G126: 10.8411463 | H126: 0.1010434828 | I126: -0.3163518116
A127: 1.25 | B127: 80.68780486 | C127: 2.470894576 | G127: 10.8664524 | H127: 0.1010309171 | I127: -0.3227142203
A128: 1.26 | B128: 80.81939355 | C128: 2.476998536 | G128: 10.8927756 | H128: 0.1010195768 | I128: -0.3290313362
A129: 1.27 | B129: 80.95112924 | C129: 2.483082415 | G129: 10.9201153 | H129: 0.1010094423 | I129: -0.3353033543
A130: 1.28 | B130: 81.08297352 | C130: 2.489142168 | G130: 10.94845725 | H130: 0.1010004952 | I130: -0.3415304682
A131: 1.29 | B131: 81.21489312 | C131: 2.495177346 | G131: 10.97777948 | H131: 0.1009927174 | I131: -0.3477128711
A132: 1.3 | B132: 81.3468522 | C132: 2.501187414 | G132: 11.0080486 | H132: 0.1009860908 | I132: -0.3538507563
A133: 1.31 | B133: 81.47882402 | C133: 2.507175307 | G133: 11.03921999 | H133: 0.1009805981 | I133: -0.3599443186
A134: 1.32 | B134: 81.6107542 | C134: 2.513137038 | G134: 11.0712416 | H134: 0.1009762221 | I134: -0.3659937543
A135: 1.33 | B135: 81.74259686 | C135: 2.519072271 | G135: 11.10405654 | H135: 0.1009729466 | I135: -0.3719992561
A136: 1.34 | B136: 81.87432118 | C136: 2.524984042 | G136: 11.13759562 | H136: 0.1009707575 | I136: -0.3779610012
A137: 1.35 | B137: 82.00586766 | C137: 2.530868602 | G137: 11.17178421 | H137: 0.1009696415 | I137: -0.3838791637
A138: 1.36 | B138: 82.13718616 | C138: 2.536725723 | G138: 11.20653821 | H138: 0.1009695855 | I138: -0.3897539215
A139: 1.37 | B139: 82.26824303 | C139: 2.542558555 | G139: 11.24176454 | H139: 0.1009705774 | I139: -0.3955854522
A140: 1.38 | B140: 82.39899171 | C140: 2.54836682 | G140: 11.27736311 | H140: 0.1009726057 | I140: -0.4013739339
A141: 1.39 | B141: 82.5293552 | C141: 2.554143818 | G141: 11.313227 | H141: 0.1009756597 | I141: -0.4071195421
A142: 1.4 | B142: 82.65933876 | C142: 2.559899072 | G142: 11.34924717 | H142: 0.1009797303 | I142: -0.4128224501
A143: 1.41 | B143: 82.78887132 | C143: 2.565626056 | G143: 11.38531948 | H143: 0.1009848088 | I143: -0.4184828364
A144: 1.42 | B144: 82.91791412 | C144: 2.571324774 | G144: 11.42134085 | H144: 0.1009908876 | I144: -0.42410088
A145: 1.43 | B145: 83.04644442 | C145: 2.57699829 | G145: 11.45720366 | H145: 0.1009979587 | I145: -0.4296767592
A146: 1.44 | B146: 83.1744104 | C146: 2.582643354 | G146: 11.49280365 | H146: 0.1010060147 | I146: -0.4352106524
A147: 1.45 | B147: 83.30178149 | C147: 2.588263028 | G147: 11.52803913 | H147: 0.1010150486 | I147: -0.4407027395
A148: 1.46 | B148: 83.42850791 | C148: 2.593857472 | G148: 11.56280634 | H148: 0.1010250536 | I148: -0.4461532008
A149: 1.47 | B149: 83.55453491 | C149: 2.599424391 | G149: 11.59700302 | H149: 0.1010360232 | I149: -0.4515622161
A150: 1.48 | B150: 83.67982966 | C150: 2.604964999 | G150: 11.63053431 | H150: 0.1010479508 | I150: -0.4569299671
A151: 1.49 | B151: 83.804365 | C151: 2.610483613 | G151: 11.66331217 | H151: 0.1010608299 | I151: -0.4622566333
A152: 1.5 | B152: 83.92811037 | C152: 2.615981647 | G152: 11.69525206 | H152: 0.1010746531 | I152: -0.4675423951
A153: 1.51 | B153: 84.05105307 | C153: 2.621460704 | G153: 11.72628344 | H153: 0.1010894147 | I153: -0.4727874353
A154: 1.52 | B154: 84.17318152 | C154: 2.62691932 | G154: 11.75636693 | H154: 0.101105108 | I154: -0.4779919416
A155: 1.53 | B155: 84.29451679 | C155: 2.632361697 | G155: 11.78550207 | H155: 0.1011217258 | I155: -0.4831561087
A156: 1.54 | B156: 84.41506271 | C156: 2.637786615 | G156: 11.81371336 | H156: 0.1011392591 | I156: -0.4882801329
A157: 1.55 | B157: 84.53483669 | C157: 2.643198051 | G157: 11.84104112 | H157: 0.1011576966 | I157: -0.4933642082
A158: 1.56 | B158: 84.65385163 | C158: 2.648597133 | G158: 11.86753933 | H158: 0.1011770262 | I158: -0.4984085326
A159: 1.57 | B159: 84.77212821 | C159: 2.653984797 | G159: 11.89325991 | H159: 0.1011972352 | I159: -0.5034133159
A160: 1.58 | B160: 84.88968324 | C160: 2.659358904 | G160: 11.9182539 | H160: 0.10121831 | I160: -0.5083787752
A161: 1.59 | B161: 85.00653578 | C161: 2.664722632 | G161: 11.94258053 | H161: 0.1012402371 | I161: -0.5133051373
A162: 1.6 | B162: 85.1226946 | C162: 2.670076429 | G162: 11.96630843 | H162: 0.1012630015 | I162: -0.5181926314
A163: 1.61 | B163: 85.23817064 | C163: 2.675418011 | G163: 11.98952253 | H163: 0.1012865859 | I163: -0.5230414908
A164: 1.62 | B164: 85.35297862 | C164: 2.680750147 | G164: 12.01230903 | H164: 0.1013109707 | I164: -0.5278519533
A165: 1.63 | B165: 85.46712487 | C165: 2.686072864 | G165: 12.03474886 | H165: 0.101336135 | I165: -0.5326242592
A166: 1.64 | B166: 85.58061849 | C166: 2.691386356 | G166: 12.05692631 | H166: 0.101362057 | I166: -0.5373586507
A167: 1.65 | B167: 85.69347062 | C167: 2.69669111 | G167: 12.07892232 | H167: 0.1013887161 | I167: -0.5420553715
A168: 1.66 | B168: 85.80569573 | C168: 2.701985068 | G168: 12.10080735 | H168: 0.1014160922 | I168: -0.5467146651
A169: 1.67 | B169: 85.91730092 | C169: 2.707271338 | G169: 12.1226431 | H169: 0.1014441662 | I169: -0.551336773
A170: 1.68 | B170: 86.02829568 | C170: 2.712550425 | G170: 12.14448938 | H170: 0.10147292 | I170: -0.555921937
A171: 1.69 | B171: 86.13869092 | C171: 2.717822738 | G171: 12.16639902 | H171: 0.1015023364 | I171: -0.560470396
A172: 1.7 | B172: 86.24849944 | C172: 2.72308862 | G172: 12.18842823 | H172: 0.1015323992 | I172: -0.5649823909
A173: 1.71 | B173: 86.35773489 | C173: 2.728348543 | G173: 12.21063837 | H173: 0.1015630926 | I173: -0.569458163
A174: 1.72 | B174: 86.46641673 | C174: 2.733600412 | G174: 12.23308524 | H174: 0.1015944018 | I174: -0.5738979525
A175: 1.73 | B175: 86.57454869 | C175: 2.738847301 | G175: 12.25582094 | H175: 0.1016263127 | I175: -0.5783020019
A176: 1.74 | B176: 86.68213772 | C176: 2.744089719 | G176: 12.27889652 | H176: 0.1016588121 | I176: -0.5826705532
A177: 1.75 | B177: 86.78918341 | C177: 2.749330779 | G177: 12.30236037 | H177: 0.1016918874 | I177: -0.5870038476
A178: 1.76 | B178: 86.89571003 | C178: 2.754565784 | G178: 12.32625393 | H178: 0.1017255269 | I178: -0.591302128
A179: 1.77 | B179: 87.00172372 | C179: 2.759795203 | G179: 12.35060875 | H179: 0.1017597197 | I179: -0.5955656338
A180: 1.78 | B180: 87.10720792 | C180: 2.765024741 | G180: 12.3754462 | H180: 0.1017944555 | I180: -0.5997946029
A181: 1.79 | B181: 87.21217635 | C181: 2.770252351 | G181: 12.40078127 | H181: 0.1018297246 | I181: -0.6039892716
A182: 1.8 | B182: 87.3166343 | C182: 2.77547859 | G182: 12.42662347 | H182: 0.1018655183 | I182: -0.6081498733
A183: 1.81 | B183: 87.42059681 | C183: 2.78070135 | G183: 12.45297602 | H183: 0.1019018288 | I183: -0.6122766378
A184: 1.82 | B184: 87.52403871 | C184: 2.785926386 | G184: 12.47983158 | H184: 0.1019386491 | I184: -0.6163697921
A185: 1.83 | B185: 87.62698145 | C185: 2.79114902 | G185: 12.50717037 | H185: 0.1019759729 | I185: -0.6204295603
A186: 1.84 | B186: 87.72939283 | C186: 2.796375114 | G186: 12.53496575 | H186: 0.1020137942 | I186: -0.6244561659
A187: 1.85 | B187: 87.83129391 | C187: 2.801599934 | G187: 12.56318735 | H187: 0.1020521068 | I187: -0.6284498329
A188: 1.86 | B188: 87.93264839 | C188: 2.80682941 | G188: 12.59180063 | H188: 0.1020909049 | I188: -0.6324107851
A189: 1.87 | B189: 88.03347504 | C189: 2.812058861 | G189: 12.6207665 | H189: 0.102130183 | I189: -0.6363392473
A190: 1.88 | B190: 88.13374526 | C190: 2.817291643 | G190: 12.65004001 | H190: 0.1021699374 | I190: -0.6402354417
A191: 1.89 | B191: 88.23342646 | C191: 2.822531247 | G191: 12.67957105 | H191: 0.1022101653 | I191: -0.6440995891
A192: 1.9 | B192: 88.33253674 | C192: 2.827772987 | G192: 12.70930032 | H192: 0.1022508648 | I192: -0.6479319075
A193: 1.91 | B193: 88.43102138 | C193: 2.833023129 | G193: 12.73916351 | H193: 0.1022920339 | I193: -0.6517326128
A194: 1.92 | B194: 88.52889973 | C194: 2.83827687 | G194: 12.7690895 | H194: 0.102333671 | I194: -0.6555019204
A195: 1.93 | B195: 88.62611245 | C195: 2.843540473 | G195: 12.79900061 | H195: 0.1023757749 | I195: -0.6592400441
A196: 1.94 | B196: 88.72268077 | C196: 2.848808933 | G196: 12.8288166 | H196: 0.1024183444 | I196: -0.6629471968
A197: 1.95 | B197: 88.81853965 | C197: 2.854088753 | G197: 12.85845438 | H197: 0.1024613791 | I197: -0.6666235911
A198: 1.96 | B198: 88.91368979 | C198: 2.859378063 | G198: 12.8878255 | H198: 0.1025048788 | I198: -0.6702694364
A199: 1.97 | B199: 89.00813659 | C199: 2.864674898 | G199: 12.91684501 | H199: 0.1025488433 | I199: -0.6738849387
A200: 1.98 | B200: 89.10181019 | C200: 2.869986311 | G200: 12.94543468 | H200: 0.1025932723 | I200: -0.6774703014
... 1802 more rows

Sheet BFA_MaleWHO
A1: Age | B1: L | C1: M | D1: S
A2: 5.1 | B2: -0.7387 | C2: 15.2641 | D2: 0.0839
A3: 5.2 | B3: -0.7621 | C3: 15.2616 | D3: 0.08414
A4: 5.3 | B4: -0.7856 | C4: 15.2604 | D4: 0.08439 | F4: BMI | G4: =rapport!D7 -> 22.89281998
A5: 5.3 | B5: -0.8089 | C5: 15.2605 | D5: 0.08464
A6: 5.4 | B6: -0.8322 | C6: 15.2619 | D6: 0.0849 | F6: muBMI | G6: =IF(rapport!$K$7="M", VLOOKUP(rapport!$K$6,BFA_MaleWHO,3,FALSE), IF(rapport!$K$7="F", VLOOKUP(rapport!$K$6,BFA_FemaleWHO,3,FALSE), "out of range")) -> 19.7744 | I6: Z=x | J6: =((G4/G6)^G8-1)/(G7*G8) -> 1.059494693
A7: 5.5 | B7: -0.8554 | C7: 15.2645 | D7: 0.08516 | F7: sigmaBMI | G7: =IF(rapport!$K$7="m", VLOOKUP(rapport!$K$6,BFA_MaleWHO,4,FALSE), IF(rapport!$K$7="f", VLOOKUP(rapport!$K$6,BFA_FemaleWHO,4,FALSE), "out of range")) -> 0.12412
A8: 5.6 | B8: -0.8785 | C8: 15.2684 | D8: 0.08543 | F8: nuBMI | G8: =IF(rapport!$K$7="m", VLOOKUP(rapport!$K$6,BFA_MaleWHO,2,FALSE), IF(rapport!$K$7="f", VLOOKUP(rapport!$K$6,BFA_FemaleWHO,2,FALSE), "out of range")) -> -1.4961
A9: 5.7 | B9: -0.9015 | C9: 15.2737 | D9: 0.0857
A10: 5.8 | B10: -0.9243 | C10: 15.2801 | D10: 0.08597
A11: 5.8 | B11: -0.9471 | C11: 15.2877 | D11: 0.08625
A12: 5.9 | B12: -0.9697 | C12: 15.2965 | D12: 0.08653 | J12: exp ((log((l*s)+1) + (l * log(m)))/l) | K12: =EXP(LOG((G8*G7)+1)+(G8*LOG(G6))/G8) -> 3.34307
A13: 6 | B13: -0.9921 | C13: 15.3062 | D13: 0.08682 | N13: Log((l*s+1)) | O13: =(LOG((G8*G7)+1)) -> -0.08921339561
A14: 6.1 | B14: -1.0144 | C14: 15.3169 | D14: 0.08711 | K14: =G6+O17 -> 23.11747 | N14: (l * log(m)))/l | O14: =(G8*LOG(G6))/G8 -> 1.296103315
A15: 6.2 | B15: -1.0365 | C15: 15.3285 | D15: 0.08741 | K15: =rapport!D5/100*rapport!D5/100 -> 2.40 | N15: Somme | O15: =O13+O14 -> 1.206889919
A16: 6.3 | B16: -1.0584 | C16: 15.3408 | D16: 0.08771 | K16: =K14*K15-1 -> 54.53972467
A17: 6.3 | B17: -1.0801 | C17: 15.354 | D17: 0.08802 | K17: =K14*K15 -> 55.53972467 | N17: exp(somme) | O17: =EXP(O15) -> 3.343071246
A18: 6.4 | B18: -1.1017 | C18: 15.3679 | D18: 0.08833
A19: 6.5 | B19: -1.123 | C19: 15.3825 | D19: 0.08865 | J19: Z (=1)=((bmi/m)**l-1)/(s*l);
A20: 6.6 | B20: -1.1441 | C20: 15.3978 | D20: 0.08898
A21: 6.7 | B21: -1.1649 | C21: 15.4137 | D21: 0.08931 | J21: Bmi pred | K21: =G6+(POWER(1*(ABS(G8)*G7),ABS(G8)-1)) -> 20.20816336
A22: 6.8 | B22: -1.1856 | C22: 15.4302 | D22: 0.08964 | K22: =K21+K12 -> 23.55123
A23: 6.8 | B23: -1.206 | C23: 15.4473 | D23: 0.08998
A24: 6.9 | B24: -1.2261 | C24: 15.465 | D24: 0.09033
A25: 7 | B25: -1.246 | C25: 15.4832 | D25: 0.09068 | J25: Z (=0)=((bmi/m)**l-1)/(s*l); | K25: =((G4/G6)^G8-1) -> -0.1967438545
A26: 7.1 | B26: -1.2656 | C26: 15.5019 | D26: 0.09103
A27: 7.2 | B27: -1.2849 | C27: 15.521 | D27: 0.09139 | J27: Bmi pred
A28: 7.3 | B28: -1.304 | C28: 15.5407 | D28: 0.09176
A29: 7.3 | B29: -1.3228 | C29: 15.5608 | D29: 0.09213
A30: 7.4 | B30: -1.3414 | C30: 15.5814 | D30: 0.09251
A31: 7.5 | B31: -1.3596 | C31: 15.6023 | D31: 0.09289
A32: 7.6 | B32: -1.3776 | C32: 15.6237 | D32: 0.09327
A33: 7.7 | B33: -1.3953 | C33: 15.6455 | D33: 0.09366
A34: 7.8 | B34: -1.4126 | C34: 15.6677 | D34: 0.09406
A35: 7.8 | B35: -1.4297 | C35: 15.6903 | D35: 0.09445
A36: 7.9 | B36: -1.4464 | C36: 15.7133 | D36: 0.09486
A37: 8 | B37: -1.4629 | C37: 15.7368 | D37: 0.09526
A38: 8.1 | B38: -1.479 | C38: 15.7606 | D38: 0.09567
A39: 8.2 | B39: -1.4947 | C39: 15.7848 | D39: 0.09609
A40: 8.3 | B40: -1.5101 | C40: 15.8094 | D40: 0.09651
A41: 8.3 | B41: -1.5252 | C41: 15.8344 | D41: 0.09693
A42: 8.4 | B42: -1.5399 | C42: 15.8597 | D42: 0.09735
A43: 8.5 | B43: -1.5542 | C43: 15.8855 | D43: 0.09778
A44: 8.6 | B44: -1.5681 | C44: 15.9116 | D44: 0.09821
A45: 8.7 | B45: -1.5817 | C45: 15.9381 | D45: 0.09864
A46: 8.8 | B46: -1.5948 | C46: 15.9651 | D46: 0.09907
A47: 8.8 | B47: -1.6076 | C47: 15.9925 | D47: 0.09951
A48: 8.9 | B48: -1.6199 | C48: 16.0205 | D48: 0.09994
A49: 9 | B49: -1.6318 | C49: 16.049 | D49: 0.10038
A50: 9.1 | B50: -1.6433 | C50: 16.0781 | D50: 0.10082
A51: 9.2 | B51: -1.6544 | C51: 16.1078 | D51: 0.10126
A52: 9.3 | B52: -1.6651 | C52: 16.1381 | D52: 0.1017
A53: 9.3 | B53: -1.6753 | C53: 16.1692 | D53: 0.10214
A54: 9.4 | B54: -1.6851 | C54: 16.2009 | D54: 0.10259
A55: 9.5 | B55: -1.6944 | C55: 16.2333 | D55: 0.10303
A56: 9.6 | B56: -1.7032 | C56: 16.2665 | D56: 0.10347
A57: 9.7 | B57: -1.7116 | C57: 16.3004 | D57: 0.10391
A58: 9.8 | B58: -1.7196 | C58: 16.3351 | D58: 0.10435
A59: 9.8 | B59: -1.7271 | C59: 16.3704 | D59: 0.10478
A60: 9.9 | B60: -1.7341 | C60: 16.4065 | D60: 0.10522
A61: 10 | B61: -1.7407 | C61: 16.4433 | D61: 0.10566
A62: 10.1 | B62: -1.7468 | C62: 16.4807 | D62: 0.10609
A63: 10.2 | B63: -1.7525 | C63: 16.5189 | D63: 0.10652
A64: 10.3 | B64: -1.7578 | C64: 16.5578 | D64: 0.10695
A65: 10.3 | B65: -1.7626 | C65: 16.5974 | D65: 0.10738
A66: 10.4 | B66: -1.767 | C66: 16.6376 | D66: 0.1078
A67: 10.5 | B67: -1.771 | C67: 16.6786 | D67: 0.10823
A68: 10.6 | B68: -1.7745 | C68: 16.7203 | D68: 0.10865
A69: 10.7 | B69: -1.7777 | C69: 16.7628 | D69: 0.10906
A70: 10.8 | B70: -1.7804 | C70: 16.8059 | D70: 0.10948
A71: 10.8 | B71: -1.7828 | C71: 16.8497 | D71: 0.10989
A72: 10.9 | B72: -1.7847 | C72: 16.8941 | D72: 0.1103
A73: 11 | B73: -1.7862 | C73: 16.9392 | D73: 0.1107
A74: 11.1 | B74: -1.7873 | C74: 16.985 | D74: 0.1111
A75: 11.2 | B75: -1.7881 | C75: 17.0314 | D75: 0.1115
A76: 11.3 | B76: -1.7884 | C76: 17.0784 | D76: 0.11189
A77: 11.3 | B77: -1.7884 | C77: 17.1262 | D77: 0.11228
A78: 11.4 | B78: -1.788 | C78: 17.1746 | D78: 0.11266
A79: 11.5 | B79: -1.7873 | C79: 17.2236 | D79: 0.11304
A80: 11.6 | B80: -1.7861 | C80: 17.2734 | D80: 0.11342
A81: 11.7 | B81: -1.7846 | C81: 17.324 | D81: 0.11379
A82: 11.8 | B82: -1.7828 | C82: 17.3752 | D82: 0.11415
A83: 11.8 | B83: -1.7806 | C83: 17.4272 | D83: 0.11451
A84: 11.9 | B84: -1.778 | C84: 17.4799 | D84: 0.11487
A85: 12 | B85: -1.7751 | C85: 17.5334 | D85: 0.11522
A86: 12.1 | B86: -1.7719 | C86: 17.5877 | D86: 0.11556
A87: 12.2 | B87: -1.7684 | C87: 17.6427 | D87: 0.1159
A88: 12.3 | B88: -1.7645 | C88: 17.6985 | D88: 0.11623
A89: 12.3 | B89: -1.7604 | C89: 17.7551 | D89: 0.11656
A90: 12.4 | B90: -1.7559 | C90: 17.8124 | D90: 0.11688
A91: 12.5 | B91: -1.7511 | C91: 17.8704 | D91: 0.1172
A92: 12.6 | B92: -1.7461 | C92: 17.9292 | D92: 0.11751
A93: 12.7 | B93: -1.7408 | C93: 17.9887 | D93: 0.11781
A94: 12.8 | B94: -1.7352 | C94: 18.0488 | D94: 0.11811
A95: 12.8 | B95: -1.7293 | C95: 18.1096 | D95: 0.11841
A96: 12.9 | B96: -1.7232 | C96: 18.171 | D96: 0.11869
A97: 13 | B97: -1.7168 | C97: 18.233 | D97: 0.11898
A98: 13.1 | B98: -1.7102 | C98: 18.2955 | D98: 0.11925
A99: 13.2 | B99: -1.7033 | C99: 18.3586 | D99: 0.11952
A100: 13.3 | B100: -1.6962 | C100: 18.4221 | D100: 0.11979
A101: 13.3 | B101: -1.6888 | C101: 18.486 | D101: 0.12005
A102: 13.4 | B102: -1.6811 | C102: 18.5502 | D102: 0.1203
A103: 13.5 | B103: -1.6732 | C103: 18.6148 | D103: 0.12055
A104: 13.6 | B104: -1.6651 | C104: 18.6795 | D104: 0.12079
A105: 13.7 | B105: -1.6568 | C105: 18.7445 | D105: 0.12102
A106: 13.8 | B106: -1.6482 | C106: 18.8095 | D106: 0.12125
A107: 13.8 | B107: -1.6394 | C107: 18.8746 | D107: 0.12148
A108: 13.9 | B108: -1.6304 | C108: 18.9398 | D108: 0.1217
A109: 14 | B109: -1.6211 | C109: 19.005 | D109: 0.12191
A110: 14.1 | B110: -1.6116 | C110: 19.0701 | D110: 0.12212
A111: 14.2 | B111: -1.602 | C111: 19.1351 | D111: 0.12233
A112: 14.3 | B112: -1.5921 | C112: 19.2 | D112: 0.12253
A113: 14.3 | B113: -1.5821 | C113: 19.2648 | D113: 0.12272
A114: 14.4 | B114: -1.5719 | C114: 19.3294 | D114: 0.12291
A115: 14.5 | B115: -1.5615 | C115: 19.3937 | D115: 0.1231
A116: 14.6 | B116: -1.551 | C116: 19.4578 | D116: 0.12328
A117: 14.7 | B117: -1.5403 | C117: 19.5217 | D117: 0.12346
A118: 14.8 | B118: -1.5294 | C118: 19.5853 | D118: 0.12363
A119: 14.8 | B119: -1.5185 | C119: 19.6486 | D119: 0.1238
A120: 14.9 | B120: -1.5074 | C120: 19.7117 | D120: 0.12396
A121: 15 | B121: -1.4961 | C121: 19.7744 | D121: 0.12412
A122: 15.1 | B122: -1.4848 | C122: 19.8367 | D122: 0.12428
A123: 15.2 | B123: -1.4733 | C123: 19.8987 | D123: 0.12443
A124: 15.3 | B124: -1.4617 | C124: 19.9603 | D124: 0.12458
A125: 15.3 | B125: -1.45 | C125: 20.0215 | D125: 0.12473
A126: 15.4 | B126: -1.4382 | C126: 20.0823 | D126: 0.12487
A127: 15.5 | B127: -1.4263 | C127: 20.1427 | D127: 0.12501
A128: 15.6 | B128: -1.4143 | C128: 20.2026 | D128: 0.12514
A129: 15.7 | B129: -1.4022 | C129: 20.2621 | D129: 0.12528
A130: 15.8 | B130: -1.39 | C130: 20.3211 | D130: 0.12541
A131: 15.8 | B131: -1.3777 | C131: 20.3796 | D131: 0.12554
A132: 15.9 | B132: -1.3653 | C132: 20.4376 | D132: 0.12567
A133: 16 | B133: -1.3529 | C133: 20.4951 | D133: 0.12579
A134: 16.1 | B134: -1.3403 | C134: 20.5521 | D134: 0.12591
A135: 16.2 | B135: -1.3277 | C135: 20.6085 | D135: 0.12603
A136: 16.3 | B136: -1.3149 | C136: 20.6644 | D136: 0.12615
A137: 16.3 | B137: -1.3021 | C137: 20.7197 | D137: 0.12627
A138: 16.4 | B138: -1.2892 | C138: 20.7745 | D138: 0.12638
A139: 16.5 | B139: -1.2762 | C139: 20.8287 | D139: 0.1265
A140: 16.6 | B140: -1.2631 | C140: 20.8824 | D140: 0.12661
A141: 16.7 | B141: -1.2499 | C141: 20.9355 | D141: 0.12672
A142: 16.8 | B142: -1.2366 | C142: 20.9881 | D142: 0.12683
A143: 16.8 | B143: -1.2233 | C143: 21.04 | D143: 0.12694
A144: 16.9 | B144: -1.2098 | C144: 21.0914 | D144: 0.12704
A145: 17 | B145: -1.1962 | C145: 21.1423 | D145: 0.12715
A146: 17.1 | B146: -1.1826 | C146: 21.1925 | D146: 0.12726
A147: 17.2 | B147: -1.1688 | C147: 21.2423 | D147: 0.12736
A148: 17.3 | B148: -1.155 | C148: 21.2914 | D148: 0.12746
A149: 17.3 | B149: -1.141 | C149: 21.34 | D149: 0.12756
A150: 17.4 | B150: -1.127 | C150: 21.388 | D150: 0.12767
A151: 17.5 | B151: -1.1129 | C151: 21.4354 | D151: 0.12777
A152: 17.6 | B152: -1.0986 | C152: 21.4822 | D152: 0.12787
A153: 17.7 | B153: -1.0843 | C153: 21.5285 | D153: 0.12797
A154: 17.8 | B154: -1.0699 | C154: 21.5742 | D154: 0.12807
A155: 17.8 | B155: -1.0553 | C155: 21.6193 | D155: 0.12816
A156: 17.9 | B156: -1.0407 | C156: 21.6638 | D156: 0.12826
A157: 18 | B157: -1.026 | C157: 21.7077 | D157: 0.12836
A158: 18.1 | B158: -1.0112 | C158: 21.751 | D158: 0.12845
A159: 18.2 | B159: -0.9962 | C159: 21.7937 | D159: 0.12855
A160: 18.3 | B160: -0.9812 | C160: 21.8358 | D160: 0.12864
A161: 18.3 | B161: -0.9661 | C161: 21.8773 | D161: 0.12874
A162: 18.4 | B162: -0.9509 | C162: 21.9182 | D162: 0.12883
A163: 18.5 | B163: -0.9356 | C163: 21.9585 | D163: 0.12893
A164: 18.6 | B164: -0.9202 | C164: 21.9982 | D164: 0.12902
A165: 18.7 | B165: -0.9048 | C165: 22.0374 | D165: 0.12911
A166: 18.8 | B166: -0.8892 | C166: 22.076 | D166: 0.1292
A167: 18.8 | B167: -0.8735 | C167: 22.114 | D167: 0.1293
A168: 18.9 | B168: -0.8578 | C168: 22.1514 | D168: 0.12939
A169: 19 | B169: -0.8419 | C169: 22.1883 | D169: 0.12948
A170: 19.1 | B170: -0.8419 | C170: 22.1883 | D170: 0.12948
A171: 5.1 | B171: -0.8886 | C171: 15.2441 | D171: 0.09692
A172: 5.2 | B172: -0.9068 | C172: 15.2434 | D172: 0.09738
A173: 5.3 | B173: -0.9248 | C173: 15.2433 | D173: 0.09783
A174: 5.3 | B174: -0.9427 | C174: 15.2438 | D174: 0.09829
A175: 5.4 | B175: -0.9605 | C175: 15.2448 | D175: 0.09875
A176: 5.5 | B176: -0.978 | C176: 15.2464 | D176: 0.0992
A177: 5.6 | B177: -0.9954 | C177: 15.2487 | D177: 0.09966
A178: 5.7 | B178: -1.0126 | C178: 15.2516 | D178: 0.10012
A179: 5.8 | B179: -1.0296 | C179: 15.2551 | D179: 0.10058
A180: 5.8 | B180: -1.0464 | C180: 15.2592 | D180: 0.10104
A181: 5.9 | B181: -1.063 | C181: 15.2641 | D181: 0.10149
A182: 6 | B182: -1.0794 | C182: 15.2697 | D182: 0.10195
A183: 6.1 | B183: -1.0956 | C183: 15.276 | D183: 0.10241
A184: 6.2 | B184: -1.1115 | C184: 15.2831 | D184: 0.10287
A185: 6.3 | B185: -1.1272 | C185: 15.2911 | D185: 0.10333
A186: 6.3 | B186: -1.1427 | C186: 15.2998 | D186: 0.10379
A187: 6.4 | B187: -1.1579 | C187: 15.3095 | D187: 0.10425
A188: 6.5 | B188: -1.1728 | C188: 15.32 | D188: 0.10471
A189: 6.6 | B189: -1.1875 | C189: 15.3314 | D189: 0.10517
A190: 6.7 | B190: -1.2019 | C190: 15.3439 | D190: 0.10562
A191: 6.8 | B191: -1.216 | C191: 15.3572 | D191: 0.10608
A192: 6.8 | B192: -1.2298 | C192: 15.3717 | D192: 0.10654
A193: 6.9 | B193: -1.2433 | C193: 15.3871 | D193: 0.107
A194: 7 | B194: -1.2565 | C194: 15.4036 | D194: 0.10746
A195: 7.1 | B195: -1.2693 | C195: 15.4211 | D195: 0.10792
A196: 7.2 | B196: -1.2819 | C196: 15.4397 | D196: 0.10837
A197: 7.3 | B197: -1.2941 | C197: 15.4593 | D197: 0.10883
A198: 7.3 | B198: -1.306 | C198: 15.4798 | D198: 0.10929
A199: 7.4 | B199: -1.3175 | C199: 15.5014 | D199: 0.10974
A200: 7.5 | B200: -1.3287 | C200: 15.524 | D200: 0.1102
... 139 more rows

Sheet BFA_FemaleCDC
A1: Age [y] | B1: muHeight | C1: sigmaHeight | D1: muBMI | E1: sigmaBMI | F1: nuBMI | G1: muWeight | H1: sigmaWeight | I1: nuWeight
A2: 0 | B2: 50.33451545 | C2: 1.83017045 | G2: 3.505892555 | H2: 0.1209527851 | I2: 0.7846191467
A3: 0.01 | B3: 51.36606019 | C3: 1.813423884 | G3: 3.609137047 | H3: 0.1206214341 | I3: 0.7744731441
A4: 0.02 | B4: 51.90684764 | C4: 1.807001692 | G4: 3.712703809 | H4: 0.120291209 | I4: 0.7643278121
A5: 0.03 | B5: 52.38046277 | C5: 1.802960434 | G5: 3.816903976 | H5: 0.1199623236 | I5: 0.754183828
A6: 0.04 | B6: 52.82698015 | C6: 1.800400109 | G6: 3.922020309 | H6: 0.1196349906 | I6: 0.7440418627
A7: 0.05 | B7: 53.26090782 | C7: 1.798935286 | G7: 4.028291178 | H7: 0.1193094223 | I7: 0.733902557
A8: 0.06 | B8: 53.68861744 | C8: 1.79833091 | G8: 4.135817705 | H8: 0.1189858271 | I8: 0.7237665709
A9: 0.07 | B9: 54.11435255 | C9: 1.798416847 | G9: 4.24457781 | H9: 0.1186644067 | I9: 0.7136345804
A10: 0.08 | B10: 54.53957099 | C10: 1.799065495 | G10: 4.354427497 | H10: 0.1183453561 | I10: 0.7035072949
A11: 0.09 | B11: 54.96368494 | C11: 1.800193886 | G11: 4.465015966 | H11: 0.1180288663 | I11: 0.6933854846
A12: 0.1 | B12: 55.3847328 | C12: 1.80172828 | G12: 4.575767182 | H12: 0.1177151204 | I12: 0.68326998
A13: 0.11 | B13: 55.80062404 | C13: 1.803618649 | G13: 4.685933125 | H13: 0.1174042989 | I13: 0.6731616262
A14: 0.12 | B14: 56.21006509 | C14: 1.805828231 | G14: 4.794806416 | H14: 0.1170965803 | I14: 0.6630612689
A15: 0.13 | B15: 56.61295426 | C15: 1.808323404 | G15: 4.901887015 | H15: 0.1167921408 | I15: 0.6529697508
A16: 0.14 | B16: 57.00925983 | C16: 1.811067237 | G16: 5.006910621 | H16: 0.1164911442 | I16: 0.6428879018
A17: 0.15 | B17: 57.39923883 | C17: 1.814022288 | G17: 5.109809031 | H17: 0.1161937353 | I17: 0.6328165365
A18: 0.16 | B18: 57.7829514 | C18: 1.817157488 | G18: 5.210611444 | H18: 0.1159000466 | I18: 0.6227564626
A19: 0.17 | B19: 58.160461 | C19: 1.820453045 | G19: 5.309362701 | H19: 0.1156102005 | I19: 0.612708499
A20: 0.18 | B20: 58.53208271 | C20: 1.823895396 | G20: 5.406104785 | H20: 0.1153243026 | I20: 0.6026734794
A21: 0.19 | B21: 58.89820321 | C21: 1.827472358 | G21: 5.500911307 | H21: 0.1150424424 | I21: 0.5926522406
A22: 0.2 | B22: 59.25919227 | C22: 1.831170332 | G22: 5.593900653 | H22: 0.1147647002 | I22: 0.5826456172
A23: 0.21 | B23: 59.61527923 | C23: 1.834977321 | G23: 5.685207221 | H23: 0.1144911488 | I23: 0.5726544411
A24: 0.22 | B24: 59.96658526 | C24: 1.838882933 | G24: 5.774962988 | H24: 0.1142218562 | I24: 0.5626795391
A25: 0.23 | B25: 60.31302057 | C25: 1.842879222 | G25: 5.863248094 | H25: 0.1139568869 | I25: 0.552721733
A26: 0.24 | B26: 60.65429365 | C26: 1.846959444 | G26: 5.950105131 | H26: 0.1136963036 | I26: 0.5427818456
A27: 0.25 | B27: 60.99006398 | C27: 1.851117583 | G27: 6.035542504 | H27: 0.1134401666 | I27: 0.5328607028
A28: 0.26 | B28: 61.32013131 | C28: 1.855348887 | G28: 6.119546765 | H28: 0.1131885241 | I28: 0.5229590967
A29: 0.27 | B29: 61.64468837 | C29: 1.859648886 | G29: 6.202172392 | H29: 0.1129413988 | I29: 0.5130777483
A30: 0.28 | B30: 61.96397926 | C30: 1.864013594 | G30: 6.283513558 | H30: 0.1126987981 | I30: 0.5032173455
A31: 0.29 | B31: 62.27794477 | C31: 1.868440156 | G31: 6.363643852 | H31: 0.1124607183 | I31: 0.4933785683
A32: 0.3 | B32: 62.58635391 | C32: 1.872926904 | G32: 6.442605239 | H32: 0.1122271511 | I32: 0.4835620921
A33: 0.31 | B33: 62.88894306 | C33: 1.877473617 | G33: 6.520397294 | H33: 0.1119980871 | I33: 0.4737685969
A34: 0.32 | B34: 63.18538148 | C34: 1.882080211 | G34: 6.596962972 | H34: 0.1117735171 | I34: 0.4639987639
A35: 0.33 | B35: 63.47523709 | C35: 1.886747119 | G35: 6.672196975 | H35: 0.1115534318 | I35: 0.4542532669
A36: 0.34 | B36: 63.75818581 | C36: 1.891475303 | G36: 6.745978806 | H36: 0.1113378218 | I36: 0.4445327709
A37: 0.35 | B37: 64.03426731 | C37: 1.896264389 | G37: 6.818256515 | H37: 0.1111266709 | I37: 0.4348379294
A38: 0.36 | B38: 64.30370066 | C38: 1.901112086 | G38: 6.889043512 | H38: 0.1109199542 | I38: 0.425169477
A39: 0.37 | B39: 64.56680007 | C39: 1.906014983 | G39: 6.958430262 | H39: 0.1107176399 | I39: 0.415528137
A40: 0.38 | B40: 64.82403612 | C40: 1.910970509 | G40: 7.026549157 | H40: 0.1105196896 | I40: 0.4059146002
A41: 0.39 | B41: 65.07581718 | C41: 1.915977073 | G41: 7.093496558 | H41: 0.1103260634 | I41: 0.3963295406
A42: 0.4 | B42: 65.32242231 | C42: 1.921035349 | G42: 7.159326265 | H42: 0.1101367229 | I42: 0.3867736324
A43: 0.41 | B43: 65.56409343 | C43: 1.926146162 | G43: 7.224050543 | H43: 0.1099516294 | I43: 0.3772475429
A44: 0.42 | B44: 65.80105637 | C44: 1.931310432 | G44: 7.287647991 | H44: 0.1097707455 | I44: 0.3677519686
A45: 0.43 | B45: 66.0334807 | C45: 1.936529241 | G45: 7.3500746 | H45: 0.1095940349 | I45: 0.3582877618
A46: 0.44 | B46: 66.26158131 | C46: 1.94180151 | G46: 7.411319492 | H46: 0.1094214509 | I46: 0.3488557655
A47: 0.45 | B47: 66.48561665 | C47: 1.947124946 | G47: 7.471423407 | H47: 0.1092529403 | I47: 0.3394567702
A48: 0.46 | B48: 66.70577681 | C48: 1.95249712 | G48: 7.530443622 | H48: 0.1090884444 | I48: 0.3300915297
A49: 0.47 | B49: 66.92222284 | C49: 1.957915699 | G49: 7.588412844 | H49: 0.1089279039 | I49: 0.3207607716
A50: 0.48 | B50: 67.13506207 | C50: 1.96337768 | G50: 7.645296596 | H50: 0.1087712595 | I50: 0.3114652033
A51: 0.49 | B51: 67.34433072 | C51: 1.968880055 | G51: 7.700995844 | H51: 0.108618452 | I51: 0.3022055197
A52: 0.5 | B52: 67.55004138 | C52: 1.974420633 | G52: 7.755380867 | H52: 0.1084694243 | I52: 0.2929824009
A53: 0.51 | B53: 67.75222445 | C53: 1.979998078 | G53: 7.808299005 | H53: 0.1083241176 | I53: 0.2837965032
A54: 0.52 | B54: 67.95096301 | C54: 1.985610416 | G54: 7.859653109 | H54: 0.1081824653 | I54: 0.2746484536
A55: 0.53 | B55: 68.14642387 | C55: 1.99125476 | G55: 7.909436354 | H55: 0.1080443928 | I55: 0.2655388456
A56: 0.54 | B56: 68.33884063 | C56: 1.996928261 | G56: 7.957722412 | H56: 0.1079098217 | I56: 0.2564682394
A57: 0.55 | B57: 68.52850588 | C57: 2.002628641 | G57: 8.004672953 | H57: 0.107778675 | I57: 0.2474371571
A58: 0.56 | B58: 68.71575832 | C58: 2.008353344 | G58: 8.050498284 | H58: 0.107650874 | I58: 0.2384461021
A59: 0.57 | B59: 68.90093592 | C59: 2.01409998 | G59: 8.09541031 | H59: 0.1075263394 | I59: 0.2294955696
A60: 0.58 | B60: 69.08432277 | C60: 2.019866506 | G60: 8.139621986 | H60: 0.1074049921 | I60: 0.2205860495
A61: 0.59 | B61: 69.26612587 | C61: 2.025650892 | G61: 8.183326172 | H61: 0.1072867545 | I61: 0.2117180195
A62: 0.6 | B62: 69.44647605 | C62: 2.031451893 | G62: 8.2266683 | H62: 0.1071715512 | I62: 0.2028919447
A63: 0.61 | B63: 69.62541332 | C63: 2.037268076 | G63: 8.26972498 | H63: 0.1070593102 | I63: 0.1941082781
A64: 0.62 | B64: 69.80291264 | C64: 2.043098476 | G64: 8.312505783 | H64: 0.1069499639 | I64: 0.185367461
A65: 0.63 | B65: 69.97887529 | C65: 2.048942255 | G65: 8.354939889 | H65: 0.1068434493 | I65: 0.1766699281
A66: 0.64 | B66: 70.15316897 | C66: 2.05479928 | G66: 8.396900568 | H66: 0.1067397073 | I66: 0.1680161147
A67: 0.65 | B67: 70.32569016 | C67: 2.060669674 | G67: 8.43824577 | H67: 0.1066386807 | I67: 0.1594064466
A68: 0.66 | B68: 70.49637089 | C68: 2.066553858 | G68: 8.478801223 | H68: 0.1065403135 | I68: 0.1508413284
A69: 0.67 | B69: 70.66515855 | C69: 2.072452113 | G69: 8.518389809 | H69: 0.1064445524 | I69: 0.142321126
A70: 0.68 | B70: 70.83203468 | C70: 2.07836506 | G70: 8.556880311 | H70: 0.1063513449 | I70: 0.1338461624
A71: 0.69 | B71: 70.99708454 | C71: 2.084293417 | G71: 8.594262584 | H71: 0.1062606346 | I71: 0.1254167114
A72: 0.7 | B72: 71.16045587 | C72: 2.090237791 | G72: 8.630619791 | H72: 0.1061723643 | I72: 0.1170330086
A73: 0.71 | B73: 71.32231281 | C73: 2.096198279 | G73: 8.666070945 | H73: 0.1060864777 | I73: 0.1086952614
A74: 0.72 | B74: 71.4828201 | C74: 2.102176042 | G74: 8.700761664 | H74: 0.1060029201 | I74: 0.1004036497
A75: 0.73 | B75: 71.64215784 | C75: 2.108170637 | G75: 8.734863803 | H75: 0.1059216369 | I75: 0.09215832769
A76: 0.74 | B76: 71.80050017 | C76: 2.114182479 | G76: 8.768551603 | H76: 0.1058425734 | I76: 0.08395943792
A77: 0.75 | B77: 71.95799497 | C77: 2.120210998 | G77: 8.801980864 | H77: 0.1057656771 | I77: 0.07580711631
A78: 0.76 | B78: 72.11478221 | C78: 2.126256126 | G78: 8.835307197 | H78: 0.1056908983 | I78: 0.06770148972
A79: 0.77 | B79: 72.27098601 | C79: 2.132318209 | G79: 8.868671332 | H79: 0.1056181902 | I79: 0.05964268053
A80: 0.78 | B80: 72.42668753 | C80: 2.138397407 | G80: 8.902168052 | H80: 0.1055475107 | I80: 0.05163080374
A81: 0.79 | B81: 72.58193017 | C81: 2.14449519 | G81: 8.935843519 | H81: 0.1054788211 | I81: 0.04366596212
A82: 0.8 | B82: 72.73673448 | C82: 2.150612514 | G82: 8.969694914 | H82: 0.1054120868 | I82: 0.03574825521
A83: 0.81 | B83: 72.89110375 | C83: 2.156750497 | G83: 9.003679603 | H83: 0.1053472753 | I83: 0.02787778383
A84: 0.82 | B84: 73.04505477 | C84: 2.162910599 | G84: 9.03773965 | H84: 0.1052843564 | I84: 0.0200546484
A85: 0.83 | B85: 73.19861028 | C85: 2.169093608 | G85: 9.071809507 | H85: 0.1052233011 | I85: 0.01227894122
A86: 0.84 | B86: 73.35179539 | C86: 2.175300999 | G86: 9.105827345 | H86: 0.105164082 | I86: 0.004550727704
A87: 0.85 | B87: 73.50462568 | C87: 2.181533064 | G87: 9.139772785 | H87: 0.1051066708 | I87: -0.00312996825
A88: 0.86 | B88: 73.65711062 | C88: 2.187789964 | G88: 9.173678114 | H88: 0.1050510339 | I88: -0.01076315906
A89: 0.87 | B89: 73.80926722 | C89: 2.194071421 | G89: 9.2076028 | H89: 0.1049971361 | I89: -0.01834889697
A90: 0.88 | B90: 73.961106 | C90: 2.200377216 | G90: 9.241603979 | H90: 0.1049449427 | I90: -0.02588725804
A91: 0.89 | B91: 74.11263413 | C91: 2.2067079 | G91: 9.275728014 | H91: 0.1048944219 | I91: -0.0333783318
A92: 0.9 | B92: 74.26383798 | C92: 2.213063402 | G92: 9.310003034 | H92: 0.1048455435 | I92: -0.04082221873
A93: 0.91 | B93: 74.41468435 | C93: 2.219443266 | G93: 9.344431883 | H93: 0.1047982801 | I93: -0.04821903061
A94: 0.92 | B94: 74.56512707 | C94: 2.225848692 | G94: 9.378984967 | H94: 0.1047526071 | I94: -0.05556888888
A95: 0.93 | B95: 74.71511159 | C95: 2.232279276 | G95: 9.413589955 | H95: 0.1047085037 | I95: -0.06287191654
A96: 0.94 | B96: 74.86456596 | C96: 2.23873604 | G96: 9.448138248 | H96: 0.1046659513 | I96: -0.07012824008
A97: 0.95 | B97: 75.01340087 | C97: 2.245219088 | G97: 9.482483128 | H97: 0.1046249347 | I97: -0.07733798832
A98: 0.96 | B98: 75.16151763 | C98: 2.251728506 | G98: 9.516444274 | H98: 0.1045854417 | I98: -0.08450128759
A99: 0.97 | B99: 75.30881166 | C99: 2.258264836 | G99: 9.549811032 | H99: 0.1045474628 | I99: -0.09161826106
A100: 0.98 | B100: 75.4551672 | C100: 2.264828184 | G100: 9.58234441 | H100: 0.1045109899 | I100: -0.09868903088
A101: 0.99 | B101: 75.6004709 | C101: 2.271419059 | G101: 9.613792953 | H101: 0.1044760169 | I101: -0.1057137257
A102: 1 | B102: 75.74462749 | C102: 2.27803733 | G102: 9.643910184 | H102: 0.104442539 | I102: -0.1126924839
A103: 1.01 | B103: 75.88757708 | C103: 2.284685154 | G103: 9.672493302 | H103: 0.1044105523 | I103: -0.119625466
A104: 1.02 | B104: 76.02930867 | C104: 2.29135835 | G104: 9.699454067 | H104: 0.1043800439 | I104: -0.1265128828
A105: 1.03 | B105: 76.16985551 | C105: 2.298060172 | G105: 9.724813341 | H105: 0.1043509941 | I105: -0.1333549836
A106: 1.04 | B106: 76.30928288 | C106: 2.304788712 | G106: 9.748662607 | H106: 0.1043233799 | I106: -0.1401520429
A107: 1.05 | B107: 76.44767881 | C107: 2.311536922 | G107: 9.771121738 | H107: 0.1042971763 | I107: -0.1469043436
A108: 1.06 | B108: 76.58513206 | C108: 2.318307243 | G108: 9.792315397 | H108: 0.1042723583 | I108: -0.1536121738
A109: 1.07 | B109: 76.72173958 | C109: 2.325092597 | G109: 9.812386412 | H109: 0.1042488998 | I109: -0.1602757978
A110: 1.08 | B110: 76.85759256 | C110: 2.331900567 | G110: 9.831490638 | H110: 0.1042267786 | I110: -0.1668953767
A111: 1.09 | B111: 76.99279817 | C111: 2.338719003 | G111: 9.849789037 | H111: 0.1042059734 | I111: -0.1734710456
A112: 1.1 | B112: 77.12744584 | C112: 2.345550673 | G112: 9.867445261 | H112: 0.104186463 | I112: -0.1800029444
A113: 1.11 | B113: 77.26162196 | C113: 2.352393487 | G113: 9.884621 | H113: 0.1041682266 | I113: -0.1864912169
A114: 1.12 | B114: 77.3954078 | C114: 2.359240243 | G114: 9.901470202 | H114: 0.1041512445 | I114: -0.1929360102
A115: 1.13 | B115: 77.52886776 | C115: 2.366099285 | G115: 9.918141306 | H115: 0.1041354974 | I115: -0.1993374718
A116: 1.14 | B116: 77.6620746 | C116: 2.372963476 | G116: 9.934784151 | H116: 0.1041209656 | I116: -0.2056957516
A117: 1.15 | B117: 77.7950974 | C117: 2.379825503 | G117: 9.951545564 | H117: 0.1041076302 | I117: -0.2120110046
A118: 1.16 | B118: 77.9279977 | C118: 2.386693947 | G118: 9.968569277 | H118: 0.1040954723 | I118: -0.2182833882
A119: 1.17 | B119: 78.06083502 | C119: 2.393556191 | G119: 9.985993538 | H119: 0.1040844729 | I119: -0.2245130625
A120: 1.18 | B120: 78.19366307 | C120: 2.400420913 | G120: 10.0039459 | H120: 0.1040746127 | I120: -0.2307001888
A121: 1.19 | B121: 78.32652704 | C121: 2.407275364 | G121: 10.022541 | H121: 0.1040658727 | I121: -0.2368449267
A122: 1.2 | B122: 78.45947425 | C122: 2.414128374 | G122: 10.04188417 | H122: 0.1040582342 | I122: -0.2429474371
A123: 1.21 | B123: 78.59253437 | C123: 2.420967234 | G123: 10.06207587 | H123: 0.104051679 | I123: -0.2490078837
A124: 1.22 | B124: 78.72574474 | C124: 2.427801004 | G124: 10.08321012 | H124: 0.1040461899 | I124: -0.2550264335
A125: 1.23 | B125: 78.85912073 | C125: 2.434622624 | G125: 10.10537559 | H125: 0.1040417503 | I125: -0.2610032579
A126: 1.24 | B126: 78.9926724 | C126: 2.441430559 | G126: 10.12864848 | H126: 0.1040383439 | I126: -0.266938531
A127: 1.25 | B127: 79.12641437 | C127: 2.448228897 | G127: 10.15309508 | H127: 0.1040359543 | I127: -0.2728324298
A128: 1.26 | B128: 79.26032286 | C128: 2.455005561 | G128: 10.17876849 | H128: 0.1040345658 | I128: -0.2786851352
A129: 1.27 | B129: 79.39441222 | C129: 2.461770126 | G129: 10.20570719 | H129: 0.1040341629 | I129: -0.2844968298
A130: 1.28 | B130: 79.52865131 | C130: 2.468515923 | G130: 10.23391626 | H130: 0.1040347305 | I130: -0.2902676953
A131: 1.29 | B131: 79.66302854 | C131: 2.475247077 | G131: 10.26337387 | H131: 0.1040362548 | I131: -0.2959979058
A132: 1.3 | B132: 79.7974827 | C132: 2.48195155 | G132: 10.29404742 | H132: 0.1040387226 | I132: -0.3016876367
A133: 1.31 | B133: 79.93201496 | C133: 2.488638942 | G133: 10.32589678 | H133: 0.1040421216 | I133: -0.3073370653
A134: 1.32 | B134: 80.06657469 | C134: 2.495302861 | G134: 10.35886972 | H134: 0.1040464404 | I134: -0.3129463739
A135: 1.33 | B135: 80.20114105 | C135: 2.501947749 | G135: 10.39290041 | H135: 0.1040516685 | I135: -0.3185157473
A136: 1.34 | B136: 80.33565459 | C136: 2.508567368 | G136: 10.42791429 | H136: 0.1040577965 | I136: -0.3240453712
A137: 1.35 | B137: 80.47006951 | C137: 2.515160897 | G137: 10.46382194 | H137: 0.1040648165 | I137: -0.3295354262
A138: 1.36 | B138: 80.60435797 | C138: 2.521732779 | G138: 10.50052249 | H138: 0.1040727218 | I138: -0.3349860926
A139: 1.37 | B139: 80.73844808 | C139: 2.528276938 | G139: 10.537905 | H139: 0.1040815062 | I139: -0.3403975491
A140: 1.38 | B140: 80.87231018 | C140: 2.53479785 | G140: 10.57584571 | H140: 0.1040911648 | I140: -0.3457699716
A141: 1.39 | B141: 81.00586805 | C141: 2.541289715 | G141: 10.61421294 | H141: 0.1041016939 | I141: -0.3511035346
A142: 1.4 | B142: 81.13906483 | C142: 2.54775202 | G142: 10.65287243 | H142: 0.1041130902 | I142: -0.3563984137
A143: 1.41 | B143: 81.27186625 | C143: 2.554189361 | G143: 10.69169112 | H143: 0.1041253511 | I143: -0.3616547874
A144: 1.42 | B144: 81.40419126 | C144: 2.560596195 | G144: 10.73053661 | H144: 0.1041384745 | I144: -0.3668728327
A145: 1.43 | B145: 81.53600338 | C145: 2.566977175 | G145: 10.76926979 | H145: 0.1041524596 | I145: -0.3720527215
A146: 1.44 | B146: 81.66724319 | C146: 2.573331886 | G146: 10.80774845 | H146: 0.1041673059 | I146: -0.3771946277
A147: 1.45 | B147: 81.79782981 | C147: 2.579655092 | G147: 10.84583058 | H147: 0.1041830141 | I147: -0.38229873
A148: 1.46 | B148: 81.92772704 | C148: 2.585951514 | G148: 10.8833694 | H148: 0.1041995857 | I148: -0.3873652081
A149: 1.47 | B149: 82.05686222 | C149: 2.592216278 | G149: 10.92021715 | H149: 0.1042170235 | I149: -0.392394242
A150: 1.48 | B150: 82.18519236 | C150: 2.598449699 | G150: 10.95624571 | H150: 0.104235332 | I150: -0.3973860154
A151: 1.49 | B151: 82.31271487 | C151: 2.60466177 | G151: 10.99134559 | H151: 0.1042545174 | I151: -0.4023407264
A152: 1.5 | B152: 82.43935479 | C152: 2.610843614 | G152: 11.02542274 | H152: 0.1042745854 | I152: -0.4072585839
A153: 1.51 | B153: 82.5650867 | C153: 2.616996223 | G153: 11.05841479 | H153: 0.1042955413 | I153: -0.4121398014
A154: 1.52 | B154: 82.68992244 | C154: 2.623129783 | G154: 11.0902812 | H154: 0.1043173868 | I154: -0.4169845953
A155: 1.53 | B155: 82.8138035 | C155: 2.629231025 | G155: 11.12100016 | H155: 0.1043401196 | I155: -0.4217931886
A156: 1.54 | B156: 82.93676096 | C156: 2.635314239 | G156: 11.15056922 | H156: 0.1043637337 | I156: -0.4265658113
A157: 1.55 | B157: 83.05876563 | C157: 2.641370652 | G157: 11.17900919 | H157: 0.1043882218 | I157: -0.4313026957
A158: 1.56 | B158: 83.17983214 | C158: 2.647404994 | G158: 11.20636189 | H158: 0.1044135761 | I158: -0.4360040777
A159: 1.57 | B159: 83.29996545 | C159: 2.653417354 | G159: 11.23268888 | H159: 0.1044397866 | I159: -0.4406702
A160: 1.58 | B160: 83.41916892 | C160: 2.659403396 | G160: 11.25806632 | H160: 0.1044668406 | I160: -0.445301308
A161: 1.59 | B161: 83.53746626 | C161: 2.665367768 | G161: 11.28257771 | H161: 0.1044947225 | I161: -0.4498976488
A162: 1.6 | B162: 83.6548771 | C162: 2.671310831 | G162: 11.30631054 | H162: 0.1045234162 | I162: -0.4544594691
A163: 1.61 | B163: 83.7714254 | C163: 2.677228763 | G163: 11.32936969 | H163: 0.1045529045 | I163: -0.4589870158
A164: 1.62 | B164: 83.88715007 | C164: 2.683130728 | G164: 11.35186974 | H164: 0.1045831699 | I164: -0.4634805383
A165: 1.63 | B165: 84.00207509 | C165: 2.689008489 | G165: 11.37391685 | H165: 0.1046141943 | I165: -0.4679402805
A166: 1.64 | B166: 84.11623388 | C166: 2.694866701 | G166: 11.39562023 | H166: 0.1046459598 | I166: -0.4723664837
A167: 1.65 | B167: 84.22965858 | C167: 2.700701583 | G167: 11.4170933 | H167: 0.1046784481 | I167: -0.4767593892
A168: 1.66 | B168: 84.34237442 | C168: 2.706522026 | G168: 11.43844547 | H168: 0.1047116407 | I168: -0.4811192385
A169: 1.67 | B169: 84.4544071 | C169: 2.712320023 | G169: 11.45978219 | H169: 0.1047455179 | I169: -0.4854462743
A170: 1.68 | B170: 84.56577422 | C170: 2.71810014 | G170: 11.48120086 | H170: 0.1047800603 | I170: -0.4897407415
A171: 1.69 | B171: 84.67649199 | C171: 2.723862785 | G171: 11.50279202 | H171: 0.1048152489 | I171: -0.4940028852
A172: 1.7 | B172: 84.78657684 | C172: 2.729608404 | G172: 11.52463763 | H172: 0.1048510647 | I172: -0.4982329476
A173: 1.71 | B173: 84.89605048 | C173: 2.735333448 | G173: 11.54681316 | H173: 0.1048874889 | I173: -0.502431167
A174: 1.72 | B174: 85.0049185 | C174: 2.741046525 | G174: 11.56938854 | H174: 0.1049245028 | I174: -0.5065977794
A175: 1.73 | B175: 85.11320938 | C175: 2.746739972 | G175: 11.59242551 | H175: 0.1049620884 | I175: -0.5107330208
A176: 1.74 | B176: 85.22093221 | C176: 2.752418318 | G176: 11.61598033 | H176: 0.1050002288 | I176: -0.5148371294
A177: 1.75 | B177: 85.32810089 | C177: 2.758082018 | G177: 11.64010281 | H177: 0.105038908 | I177: -0.5189103421
A178: 1.76 | B178: 85.43472804 | C178: 2.763731514 | G178: 11.66483525 | H178: 0.1050781111 | I178: -0.5229528967
A179: 1.77 | B179: 85.54082492 | C179: 2.769367252 | G179: 11.69020928 | H179: 0.1051178237 | I179: -0.5269650312
A180: 1.78 | B180: 85.64640015 | C180: 2.774989702 | G180: 11.71624333 | H180: 0.1051580332 | I180: -0.5309469631
A181: 1.79 | B181: 85.75145895 | C181: 2.78059943 | G181: 11.74293602 | H181: 0.105198733 | I181: -0.5348988294
A182: 1.8 | B182: 85.85600365 | C182: 2.78619708 | G182: 11.77027439 | H182: 0.1052399188 | I182: -0.5388207485
A183: 1.81 | B183: 85.96004821 | C183: 2.791779454 | G183: 11.79823943 | H183: 0.105281588 | I183: -0.5427128454
A184: 1.82 | B184: 86.06357058 | C184: 2.797355006 | G184: 11.82680386 | H184: 0.1053237398 | I184: -0.5465752443
A185: 1.83 | B185: 86.16659423 | C185: 2.802916699 | G185: 11.85593025 | H185: 0.1053663745 | I185: -0.5504080672
A186: 1.84 | B186: 86.26909063 | C186: 2.808473 | G186: 11.8855742 | H186: 0.1054094932 | I186: -0.5542114364
A187: 1.85 | B187: 86.37108438 | C187: 2.814016956 | G187: 11.9156884 | H187: 0.1054530986 | I187: -0.5579854749
A188: 1.86 | B188: 86.47254412 | C188: 2.819557034 | G188: 11.94622068 | H188: 0.1054971946 | I188: -0.5617303032
A189: 1.87 | B189: 86.57349616 | C189: 2.825086324 | G189: 11.97711665 | H189: 0.1055417862 | I189: -0.5654460417
A190: 1.88 | B190: 86.6739067 | C190: 2.830613306 | G190: 12.00832211 | H190: 0.105586879 | I190: -0.569132812
A191: 1.89 | B191: 86.77380601 | C191: 2.836131127 | G191: 12.03978077 | H191: 0.1056324794 | I191: -0.5727907334
A192: 1.9 | B192: 86.8731581 | C192: 2.841648278 | G192: 12.07142717 | H192: 0.1056785963 | I192: -0.5764199153
A193: 1.91 | B193: 86.9719948 | C193: 2.847157938 | G193: 12.10319166 | H193: 0.1057252392 | I193: -0.5800204648
A194: 1.92 | B194: 87.07027706 | C194: 2.852668673 | G194: 12.13500358 | H194: 0.1057724182 | I194: -0.5835924884
A195: 1.93 | B195: 87.16802178 | C195: 2.858177497 | G195: 12.16679053 | H195: 0.1058201444 | I195: -0.5871360899
A196: 1.94 | B196: 87.26524865 | C196: 2.863681383 | G196: 12.19848069 | H196: 0.1058684296 | I196: -0.5906513705
A197: 1.95 | B197: 87.36191384 | C197: 2.869188897 | G197: 12.22999906 | H197: 0.1059172875 | I197: -0.5941384313
A198: 1.96 | B198: 87.45803271 | C198: 2.87469705 | G198: 12.26126481 | H198: 0.1059667326 | I198: -0.5975973749
A199: 1.97 | B199: 87.55359721 | C199: 2.880206753 | G199: 12.29219471 | H199: 0.1060167804 | I199: -0.6010283054
A200: 1.98 | B200: 87.64859962 | C200: 2.885718918 | G200: 12.32270307 | H200: 0.1060674464 | I200: -0.6044313258
... 1802 more rows

Sheet BFA_FemaleWHO
A1: Age | B1: L | C1: M | D1: S
A2: 5.1 | B2: -0.8886 | C2: 15.2441 | D2: 0.09692
A3: 5.2 | B3: -0.9068 | C3: 15.2434 | D3: 0.09738
A4: 5.3 | B4: -0.9248 | C4: 15.2433 | D4: 0.09783
A5: 5.3 | B5: -0.9427 | C5: 15.2438 | D5: 0.09829
A6: 5.4 | B6: -0.9605 | C6: 15.2448 | D6: 0.09875
A7: 5.5 | B7: -0.978 | C7: 15.2464 | D7: 0.0992
A8: 5.6 | B8: -0.9954 | C8: 15.2487 | D8: 0.09966
A9: 5.7 | B9: -1.0126 | C9: 15.2516 | D9: 0.10012
A10: 5.8 | B10: -1.0296 | C10: 15.2551 | D10: 0.10058
A11: 5.8 | B11: -1.0464 | C11: 15.2592 | D11: 0.10104
A12: 5.9 | B12: -1.063 | C12: 15.2641 | D12: 0.10149
A13: 6 | B13: -1.0794 | C13: 15.2697 | D13: 0.10195
A14: 6.1 | B14: -1.0956 | C14: 15.276 | D14: 0.10241
A15: 6.2 | B15: -1.1115 | C15: 15.2831 | D15: 0.10287
A16: 6.3 | B16: -1.1272 | C16: 15.2911 | D16: 0.10333
A17: 6.3 | B17: -1.1427 | C17: 15.2998 | D17: 0.10379
A18: 6.4 | B18: -1.1579 | C18: 15.3095 | D18: 0.10425
A19: 6.5 | B19: -1.1728 | C19: 15.32 | D19: 0.10471
A20: 6.6 | B20: -1.1875 | C20: 15.3314 | D20: 0.10517
A21: 6.7 | B21: -1.2019 | C21: 15.3439 | D21: 0.10562
A22: 6.8 | B22: -1.216 | C22: 15.3572 | D22: 0.10608
A23: 6.8 | B23: -1.2298 | C23: 15.3717 | D23: 0.10654
A24: 6.9 | B24: -1.2433 | C24: 15.3871 | D24: 0.107
A25: 7 | B25: -1.2565 | C25: 15.4036 | D25: 0.10746
A26: 7.1 | B26: -1.2693 | C26: 15.4211 | D26: 0.10792
A27: 7.2 | B27: -1.2819 | C27: 15.4397 | D27: 0.10837
A28: 7.3 | B28: -1.2941 | C28: 15.4593 | D28: 0.10883
A29: 7.3 | B29: -1.306 | C29: 15.4798 | D29: 0.10929
A30: 7.4 | B30: -1.3175 | C30: 15.5014 | D30: 0.10974
A31: 7.5 | B31: -1.3287 | C31: 15.524 | D31: 0.1102
A32: 7.6 | B32: -1.3395 | C32: 15.5476 | D32: 0.11065
A33: 7.7 | B33: -1.3499 | C33: 15.5723 | D33: 0.1111
A34: 7.8 | B34: -1.36 | C34: 15.5979 | D34: 0.11156
A35: 7.8 | B35: -1.3697 | C35: 15.6246 | D35: 0.11201
A36: 7.9 | B36: -1.379 | C36: 15.6523 | D36: 0.11246
A37: 8 | B37: -1.388 | C37: 15.681 | D37: 0.11291
A38: 8.1 | B38: -1.3966 | C38: 15.7107 | D38: 0.11335
A39: 8.2 | B39: -1.4047 | C39: 15.7415 | D39: 0.1138
A40: 8.3 | B40: -1.4125 | C40: 15.7732 | D40: 0.11424
A41: 8.3 | B41: -1.4199 | C41: 15.8058 | D41: 0.11469
A42: 8.4 | B42: -1.427 | C42: 15.8394 | D42: 0.11513
A43: 8.5 | B43: -1.4336 | C43: 15.8738 | D43: 0.11557
A44: 8.6 | B44: -1.4398 | C44: 15.909 | D44: 0.11601
A45: 8.7 | B45: -1.4456 | C45: 15.9451 | D45: 0.11644
A46: 8.8 | B46: -1.4511 | C46: 15.9818 | D46: 0.11688
A47: 8.8 | B47: -1.4561 | C47: 16.0194 | D47: 0.11731
A48: 8.9 | B48: -1.4607 | C48: 16.0575 | D48: 0.11774
A49: 9 | B49: -1.465 | C49: 16.0964 | D49: 0.11816
A50: 9.1 | B50: -1.4688 | C50: 16.1358 | D50: 0.11859
A51: 9.2 | B51: -1.4723 | C51: 16.1759 | D51: 0.11901
A52: 9.3 | B52: -1.4753 | C52: 16.2166 | D52: 0.11943
A53: 9.3 | B53: -1.478 | C53: 16.258 | D53: 0.11985
A54: 9.4 | B54: -1.4803 | C54: 16.2999 | D54: 0.12026
A55: 9.5 | B55: -1.4823 | C55: 16.3425 | D55: 0.12067
A56: 9.6 | B56: -1.4838 | C56: 16.3858 | D56: 0.12108
A57: 9.7 | B57: -1.485 | C57: 16.4298 | D57: 0.12148
A58: 9.8 | B58: -1.4859 | C58: 16.4746 | D58: 0.12188
A59: 9.8 | B59: -1.4864 | C59: 16.52 | D59: 0.12228
A60: 9.9 | B60: -1.4866 | C60: 16.5663 | D60: 0.12268
A61: 10 | B61: -1.4864 | C61: 16.6133 | D61: 0.12307
A62: 10.1 | B62: -1.4859 | C62: 16.6612 | D62: 0.12346
A63: 10.2 | B63: -1.4851 | C63: 16.71 | D63: 0.12384
A64: 10.3 | B64: -1.4839 | C64: 16.7595 | D64: 0.12422
A65: 10.3 | B65: -1.4825 | C65: 16.81 | D65: 0.1246
A66: 10.4 | B66: -1.4807 | C66: 16.8614 | D66: 0.12497
A67: 10.5 | B67: -1.4787 | C67: 16.9136 | D67: 0.12534
A68: 10.6 | B68: -1.4763 | C68: 16.9667 | D68: 0.12571
A69: 10.7 | B69: -1.4737 | C69: 17.0208 | D69: 0.12607
A70: 10.8 | B70: -1.4708 | C70: 17.0757 | D70: 0.12643
A71: 10.8 | B71: -1.4677 | C71: 17.1316 | D71: 0.12678
A72: 10.9 | B72: -1.4642 | C72: 17.1883 | D72: 0.12713
A73: 11 | B73: -1.4606 | C73: 17.2459 | D73: 0.12748
A74: 11.1 | B74: -1.4567 | C74: 17.3044 | D74: 0.12782
A75: 11.2 | B75: -1.4526 | C75: 17.3637 | D75: 0.12816
A76: 11.3 | B76: -1.4482 | C76: 17.4238 | D76: 0.12849
A77: 11.3 | B77: -1.4436 | C77: 17.4847 | D77: 0.12882
A78: 11.4 | B78: -1.4389 | C78: 17.5464 | D78: 0.12914
A79: 11.5 | B79: -1.4339 | C79: 17.6088 | D79: 0.12946
A80: 11.6 | B80: -1.4288 | C80: 17.6719 | D80: 0.12978
A81: 11.7 | B81: -1.4235 | C81: 17.7357 | D81: 0.13009
A82: 11.8 | B82: -1.418 | C82: 17.8001 | D82: 0.1304
A83: 11.8 | B83: -1.4123 | C83: 17.8651 | D83: 0.1307
A84: 11.9 | B84: -1.4065 | C84: 17.9306 | D84: 0.13099
A85: 12 | B85: -1.4006 | C85: 17.9966 | D85: 0.13129
A86: 12.1 | B86: -1.3945 | C86: 18.063 | D86: 0.13158
A87: 12.2 | B87: -1.3883 | C87: 18.1297 | D87: 0.13186
A88: 12.3 | B88: -1.3819 | C88: 18.1967 | D88: 0.13214
A89: 12.3 | B89: -1.3755 | C89: 18.2639 | D89: 0.13241
A90: 12.4 | B90: -1.3689 | C90: 18.3312 | D90: 0.13268
A91: 12.5 | B91: -1.3621 | C91: 18.3986 | D91: 0.13295
A92: 12.6 | B92: -1.3553 | C92: 18.466 | D92: 0.13321
A93: 12.7 | B93: -1.3483 | C93: 18.5333 | D93: 0.13347
A94: 12.8 | B94: -1.3413 | C94: 18.6006 | D94: 0.13372
A95: 12.8 | B95: -1.3341 | C95: 18.6677 | D95: 0.13397
A96: 12.9 | B96: -1.3269 | C96: 18.7346 | D96: 0.13421
A97: 13 | B97: -1.3195 | C97: 18.8012 | D97: 0.13445
A98: 13.1 | B98: -1.3121 | C98: 18.8675 | D98: 0.13469
A99: 13.2 | B99: -1.3046 | C99: 18.9335 | D99: 0.13492
A100: 13.3 | B100: -1.297 | C100: 18.9991 | D100: 0.13514
A101: 13.3 | B101: -1.2894 | C101: 19.0642 | D101: 0.13537
A102: 13.4 | B102: -1.2816 | C102: 19.1289 | D102: 0.13559
A103: 13.5 | B103: -1.2739 | C103: 19.1931 | D103: 0.1358
A104: 13.6 | B104: -1.2661 | C104: 19.2567 | D104: 0.13601
A105: 13.7 | B105: -1.2583 | C105: 19.3197 | D105: 0.13622
A106: 13.8 | B106: -1.2504 | C106: 19.382 | D106: 0.13642
A107: 13.8 | B107: -1.2425 | C107: 19.4437 | D107: 0.13662
A108: 13.9 | B108: -1.2345 | C108: 19.5045 | D108: 0.13681
A109: 14 | B109: -1.2266 | C109: 19.5647 | D109: 0.137
A110: 14.1 | B110: -1.2186 | C110: 19.624 | D110: 0.13719
A111: 14.2 | B111: -1.2107 | C111: 19.6824 | D111: 0.13738
A112: 14.3 | B112: -1.2027 | C112: 19.74 | D112: 0.13756
A113: 14.3 | B113: -1.1947 | C113: 19.7966 | D113: 0.13774
A114: 14.4 | B114: -1.1867 | C114: 19.8523 | D114: 0.13791
A115: 14.5 | B115: -1.1788 | C115: 19.907 | D115: 0.13808
A116: 14.6 | B116: -1.1708 | C116: 19.9607 | D116: 0.13825
A117: 14.7 | B117: -1.1629 | C117: 20.0133 | D117: 0.13841
A118: 14.8 | B118: -1.1549 | C118: 20.0648 | D118: 0.13858
A119: 14.8 | B119: -1.147 | C119: 20.1152 | D119: 0.13873
A120: 14.9 | B120: -1.139 | C120: 20.1644 | D120: 0.13889
A121: 15 | B121: -1.1311 | C121: 20.2125 | D121: 0.13904
A122: 15.1 | B122: -1.1232 | C122: 20.2595 | D122: 0.1392
A123: 15.2 | B123: -1.1153 | C123: 20.3053 | D123: 0.13934
A124: 15.3 | B124: -1.1074 | C124: 20.3499 | D124: 0.13949
A125: 15.3 | B125: -1.0996 | C125: 20.3934 | D125: 0.13963
A126: 15.4 | B126: -1.0917 | C126: 20.4357 | D126: 0.13977
A127: 15.5 | B127: -1.0838 | C127: 20.4769 | D127: 0.13991
A128: 15.6 | B128: -1.076 | C128: 20.517 | D128: 0.14005
A129: 15.7 | B129: -1.0681 | C129: 20.556 | D129: 0.14018
A130: 15.8 | B130: -1.0603 | C130: 20.5938 | D130: 0.14031
A131: 15.8 | B131: -1.0525 | C131: 20.6306 | D131: 0.14044
A132: 15.9 | B132: -1.0447 | C132: 20.6663 | D132: 0.14057
A133: 16 | B133: -1.0368 | C133: 20.7008 | D133: 0.1407
A134: 16.1 | B134: -1.029 | C134: 20.7344 | D134: 0.14082
A135: 16.2 | B135: -1.0212 | C135: 20.7668 | D135: 0.14094
A136: 16.3 | B136: -1.0134 | C136: 20.7982 | D136: 0.14106
A137: 16.3 | B137: -1.0055 | C137: 20.8286 | D137: 0.14118
A138: 16.4 | B138: -0.9977 | C138: 20.858 | D138: 0.1413
A139: 16.5 | B139: -0.9898 | C139: 20.8863 | D139: 0.14142
A140: 16.6 | B140: -0.9819 | C140: 20.9137 | D140: 0.14153
A141: 16.7 | B141: -0.974 | C141: 20.9401 | D141: 0.14164
A142: 16.8 | B142: -0.9661 | C142: 20.9656 | D142: 0.14176
A143: 16.8 | B143: -0.9582 | C143: 20.9901 | D143: 0.14187
A144: 16.9 | B144: -0.9503 | C144: 21.0138 | D144: 0.14198
A145: 17 | B145: -0.9423 | C145: 21.0367 | D145: 0.14208
A146: 17.1 | B146: -0.9344 | C146: 21.0587 | D146: 0.14219
A147: 17.2 | B147: -0.9264 | C147: 21.0801 | D147: 0.1423
A148: 17.3 | B148: -0.9184 | C148: 21.1007 | D148: 0.1424
A149: 17.3 | B149: -0.9104 | C149: 21.1206 | D149: 0.1425
A150: 17.4 | B150: -0.9024 | C150: 21.1399 | D150: 0.14261
A151: 17.5 | B151: -0.8944 | C151: 21.1586 | D151: 0.14271
A152: 17.6 | B152: -0.8863 | C152: 21.1768 | D152: 0.14281
A153: 17.7 | B153: -0.8783 | C153: 21.1944 | D153: 0.14291
A154: 17.8 | B154: -0.8703 | C154: 21.2116 | D154: 0.14301
A155: 17.8 | B155: -0.8623 | C155: 21.2282 | D155: 0.14311
A156: 17.9 | B156: -0.8542 | C156: 21.2444 | D156: 0.1432
A157: 18 | B157: -0.8462 | C157: 21.2603 | D157: 0.1433
A158: 18.1 | B158: -0.8382 | C158: 21.2757 | D158: 0.1434
A159: 18.2 | B159: -0.8301 | C159: 21.2908 | D159: 0.14349
A160: 18.3 | B160: -0.8221 | C160: 21.3055 | D160: 0.14359
A161: 18.3 | B161: -0.814 | C161: 21.32 | D161: 0.14368
A162: 18.4 | B162: -0.806 | C162: 21.3341 | D162: 0.14377
A163: 18.5 | B163: -0.798 | C163: 21.348 | D163: 0.14386
A164: 18.6 | B164: -0.7899 | C164: 21.3617 | D164: 0.14396
A165: 18.7 | B165: -0.7819 | C165: 21.3752 | D165: 0.14405
A166: 18.8 | B166: -0.7738 | C166: 21.3884 | D166: 0.14414
A167: 18.8 | B167: -0.7658 | C167: 21.4014 | D167: 0.14423
A168: 18.9 | B168: -0.7577 | C168: 21.4143 | D168: 0.14432
A169: 19 | B169: -0.7496 | C169: 21.4269 | D169: 0.14441
A170: 19.1 | B170: -0.7496 | C170: 21.4269 | D170: 0.14441
